Workbook

Sheet Apresentação

Sheet Filtros

Sheet Cubos (hidden)
A1: Atividades de gestão do Programa no Sistema Sebrae | D1: Atividades de gestão do Programa no Sebrae Nacional | G1: Iniciativas de execução do Programa no Sebrae Nacional | J1: Atividades de gestão do Programa nos Sebrae UF | N1: Iniciativas de execução do Programa no Sebrae Nacional | R1: Sebrae UF do Programa | V1: Orçamento do Programa no Sebrae Nacional | Z1: Orçamento do Programa nos estados | AE1: Sebrae UF do Programa | AH1: Sebrae NA - Clientes do Programa | AK1: Sebrae UF - Clientes do Programa | AN1: Sebrae NA - Clientes do Programa nas iniciativas | AQ1: Sebrae UF - Clientes do Programa nas iniciativas | AT1: Sebrae UF - Clientes atendidos do Programa nas iniciativas | AW1: Sebrae UF - Clientes do Programa | AZ1: Sebrae UF - Clientes do Programa - PN | BC1: Sebrae UF - Clientes do Programa - PF | BF1: Sebrae UF - Clientes do Programa | BJ1: Sebrae UF - Inciativas Gestão Programa | BM1: Sebrae UF - Inciativas Execução Programa
AW2: Sebrae | AX2: (Vários itens) | AZ2: Sebrae | BA2: (Vários itens) | BC2: Sebrae | BD2: (Vários itens) | BF2: Sebrae | BG2: (Vários itens)
V3: Sebrae | W3: SEBRAE/NA | AH3: Sebrae | AI3: SEBRAE/NA | AK3: Sebrae | AL3: (Vários itens) | AW3: Iniciativa por Tipo | AX3: Atividade | AZ3: Iniciativa por Tipo | BA3: Atividade | BC3: Iniciativa por Tipo | BD3: Atividade | BF3: Iniciativa por Tipo | BG3: Atividade
A4: Sebrae | B4: All | D4: Sebrae | E4: SEBRAE/NA | G4: Sebrae | H4: SEBRAE/NA | Z4: Sebrae | AA4: (Vários itens) | AB4: Todos os estados exceto o Sebrae Nacional | AH4: Iniciativa por Tipo | AI4: Atividade | AK4: Iniciativa por Tipo | AL4: Atividade | AN4: Sebrae | AO4: SEBRAE/NA | AQ4: Sebrae | AR4: (Vários itens) | AT4: Sebrae | AU4: All | AW4: Iniciativa por Tipologia | AX4: Desenvolvimento de Produtos e Serviços | AZ4: Iniciativa por Tipologia | BA4: Desenvolvimento de Produtos e Serviços | BC4: Iniciativa por Tipologia | BD4: Desenvolvimento de Produtos e Serviços | BF4: Iniciativa por Tipologia | BG4: Desenvolvimento de Produtos e Serviços | BJ4: Sebrae | BK4: (Vários itens) | BM4: Sebrae | BN4: (Vários itens)
A5: Iniciativa por Tipo | B5: Desenvolvimento de Produtos e Serviços | D5: Iniciativa por Tipo | E5: Desenvolvimento de Produtos e Serviços | G5: Iniciativa por Tipo | H5: (Vários itens) | J5: Iniciativa por Tipo | K5: Desenvolvimento de Produtos e Serviços | N5: Iniciativa por Tipo | O5: (Vários itens) | V5: Rótulos de Linha | W5: Valor de Despesa Orçado - Ajustado | X5: Valor de Despesa Executado | AE5: Natureza Orçamentária por Código e Descrição | AF5: 6.1.2.0 - Contribuição Social do Sebrae/NA | AH5: Iniciativa por Tipologia | AI5: Desenvolvimento de Produtos e Serviços | AK5: Iniciativa por Tipologia | AL5: Desenvolvimento de Produtos e Serviços | AN5: Iniciativa por Tipo | AO5: (Vários itens) | AQ5: Iniciativa por Tipo | AR5: (Vários itens) | AT5: Aceitabilidade | AU5: Aceito | AW5: Público Alvo | AX5: (Vários itens) | AZ5: Público Alvo | BA5: (Vários itens) | BC5: Público Alvo | BD5: (Vários itens) | BF5: Público Alvo | BG5: (Vários itens) | BJ5: Iniciativa por Tipo | BK5: Atividade | BM5: Iniciativa por Tipo | BN5: (Vários itens)
Z6: Rótulos de Linha | AA6: Valor de Despesa Orçado - Ajustado | AB6: Valor de Despesa Executado | AC6: Valor de Receita Iniciativa Orçado - Ajustado | BJ6: Iniciativa por Tipologia | BK6: Desenvolvimento de Produtos e Serviços | BM6: Iniciativa por Tipologia | BN6: All
A7: Rótulos de Linha | B7: Nº de Iniciativas - Ajustado | D7: Rótulos de Linha | E7: Nº de Iniciativas - Ajustado | G7: Rótulos de Linha | H7: Nº de Iniciativas - Ajustado | J7: Nº de Iniciativas - Ajustado | N7: Nº de Iniciativas - Ajustado | R7: Rótulos de Linha | S7: Nº de Iniciativas - Ajustado | T7: Valor de Despesa Orçado - Ajustado | Z7: NI - Não Informado | AC7: 0 | AE7: Rótulos de Linha | AF7: Valor de Receita Iniciativa Orçado - Ajustado | AH7: Rótulos de Linha | AI7: Nº de Clientes Planejado - Ajustado | AK7: Rótulos de Linha | AL7: Nº de Clientes Planejado - Ajustado | AN7: Rótulos de Linha | AO7: Nº de Clientes Planejado - Ajustado | AQ7: Rótulos de Linha | AR7: Nº de Clientes Planejado - Ajustado | AT7: Rótulos de Linha | AU7: N° de Clientes | AW7: Rótulos de Linha | AX7: Nº de Clientes Planejado - Ajustado | AZ7: Rótulos de Linha | BA7: Nº de Clientes Planejado - Ajustado | BC7: Rótulos de Linha | BD7: Nº de Clientes Planejado - Ajustado | BF7: Nº de Clientes Planejado - Ajustado | BG7: Rótulos de Coluna
A8: Cliente em Foco | B8: 12 | J8: Nome de Programa | K8: Descrição de Sebrae | L8: Total | N8: Nome de Programa | O8: Descrição de Sebrae | P8: Total | R8: AC | S8: 2 | T8: 10693251 | Z8: 3.1.2.1 - Serviços Especializados | AA8: 131884334 | AE8: AC | AF8: 897764 | AK8: Microempreendedor Individual | AL8: 479460 | AQ8: Microempreendedor Individual | AR8: 36524 | AW8: AC | AX8: 20742 | AZ8: AC | BA8: 12982 | BC8: AC | BD8: 7760 | BF8: Rótulos de Linha | BG8: Pessoas Físicas | BH8: Pequenos Negócios | BJ8: Rótulos de Linha | BK8: Nº de Iniciativas - Ajustado | BM8: Rótulos de Linha | BN8: Nº de Iniciativas - Ajustado
J9: Cliente em Foco | K9: SEBRAE/AC | L9: 1 | N9: Cliente em Foco | O9: SEBRAE/AC | P9: 1 | R9: AM | S9: 1 | T9: 16097000 | Z9: 3.1.2.2 - Serviços Contratados | AA9: 21996933 | AE9: AM | AF9: 6962100 | AK9: Microempresa | AL9: 327297 | AQ9: Microempresa | AR9: 10779 | AW9: AL | AZ9: AL | BC9: AL | BF9: AC | BG9: 7760 | BH9: 12982 | BJ9: AC | BK9: 1 | BM9: AC | BN9: 1
J10: Cliente em Foco | K10: SEBRAE/AM | L10: 1 | N10: Cliente em Foco | O10: SEBRAE/SP | P10: 12 | R10: ES | S10: 1 | T10: 25360461 | Z10: 3.1.3.1 - Despesas com Viagens | AA10: 3553005 | AE10: ES | AF10: 13805561 | AK10: Empresa de Pequeno Porte | AL10: 69830 | AQ10: Empresa de Pequeno Porte | AR10: 3020 | AW10: AM | AX10: 56430 | AZ10: AM | BA10: 28430 | BC10: AM | BD10: 28000 | BF10: AL | BJ10: AL | BM10: SP | BN10: 12
J11: Cliente em Foco | K11: SEBRAE/ES | L11: 1 | R11: GO | S11: 1 | T11: 20080000 | Z11: 3.1.3.2 - Aluguéis e Encargos | AA11: 1337740 | AE11: GO | AF11: 12922459 | AK11: Candidato a empresário | AL11: 399189 | AQ11: Candidato a empresário | AR11: 73232 | AW11: AP | AZ11: AP | BC11: AP | BF11: AM | BG11: 28000 | BH11: 28430 | BJ11: AM | BK11: 1 | BM11: Total Geral | BN11: 13
J12: Cliente em Foco | K12: SEBRAE/GO | L12: 1 | R12: MA | S12: 1 | Z12: 3.1.3.3 - Divulgação, Anúncios, Publicidade e Propaganda | AA12: 540000 | AE12: MS | AF12: 10372997 | AK12: Potencial Empreendedor | AL12: 90495 | AQ12: Potencial Empreendedor | AR12: 13737 | AW12: BA | AZ12: BA | BC12: BA | BF12: AP | BJ12: AP
J13: Cliente em Foco | K13: SEBRAE/MA | L13: 1 | R13: MS | S13: 1 | T13: 15418567 | Z13: 3.1.3.4 - Serviços Gráficos e de Reprodução | AA13: 2488392 | AE13: PB | AF13: 10889975 | AK13: Pessoa Física | AL13: 130000 | AQ13: Total Geral | AR13: 137292 | AW13: CE | AZ13: CE | BC13: CE | BF13: BA | BJ13: BA
J14: Cliente em Foco | K14: SEBRAE/MS | L14: 1 | R14: PB | S14: 1 | T14: 20992832 | Z14: 3.1.3.5 - Serviços de Comunicação em Geral | AA14: 497122 | AE14: PR | AF14: 22828932 | AK14: Total Geral | AL14: 1496271 | AW14: DF | AZ14: DF | BC14: DF | BF14: CE | BJ14: CE
J15: Cliente em Foco | K15: SEBRAE/PB | L15: 1 | R15: PR | S15: 1 | T15: 38239170 | Z15: 3.1.3.6 - Materiais de Consumo | AA15: 134328 | AE15: RS | AF15: 14000000 | AW15: ES | AX15: 104365 | AZ15: ES | BA15: 62268 | BC15: ES | BD15: 42097 | BF15: DF | BJ15: DF
J16: Cliente em Foco | K16: SEBRAE/PR | L16: 1 | R16: RR | S16: 1 | Z16: 3.1.3.7 - Demais Custos e Despesas Gerais | AA16: 10344141 | AE16: Total Geral | AF16: 92679788 | AW16: GO | AX16: 186227 | AZ16: GO | BA16: 78633 | BC16: GO | BD16: 107594 | BF16: ES | BG16: 42097 | BH16: 62268 | BJ16: ES | BK16: 1
J17: Cliente em Foco | K17: SEBRAE/RR | L17: 1 | R17: RS | S17: 1 | T17: 29000000 | Z17: 3.1.5.3 - Transf. Externas - Convênios c/Outras Entidades | AA17: 1091342 | AW17: MA | AX17: 70000 | AZ17: MA | BA17: 40000 | BC17: MA | BD17: 30000 | BF17: GO | BG17: 107594 | BH17: 78633 | BJ17: GO | BK17: 1
J18: Cliente em Foco | K18: SEBRAE/RS | L18: 1 | R18: SC | S18: 1 | Z18: 5.1.2.2 - Bens Móveis | AA18: 2013944 | AW18: MG | AZ18: MG | BC18: MG | BF18: MA | BG18: 30000 | BH18: 40000 | BJ18: MA | BK18: 1
J19: Cliente em Foco | K19: SEBRAE/SC | L19: 1 | R19: SE | S19: 1 | Z19: 6.1.2.2 - CS do Sebrae/NA - Proposta | AC19: 92679788 | AW19: MS | AX19: 75000 | AZ19: MS | BA19: 40000 | BC19: MS | BD19: 35000 | BF19: MG | BJ19: MG
J20: Cliente em Foco | K20: SEBRAE/SE | L20: 1 | R20: SP | S20: 12 | Z20: 6.2.1.1 - Convênios, Subvenções e Auxílios | AC20: 3472954 | AW20: MT | AZ20: MT | BC20: MT | BF20: MS | BG20: 35000 | BH20: 40000 | BJ20: MS | BK20: 1
R21: Total Geral | S21: 25 | T21: 175881281 | Z21: 6.2.1.2 - Empresas Beneficiadas | AC21: 37273638 | AW21: PA | AZ21: PA | BC21: PA | BF21: MT | BJ21: MT
Z22: Total Geral | AA22: 175881281 | AC22: 133426380 | AW22: PB | AX22: 65000 | AZ22: PB | BA22: 35000 | BC22: PB | BD22: 30000 | BF22: PA | BJ22: PA
AW23: PE | AZ23: PE | BC23: PE | BF23: PB | BG23: 30000 | BH23: 35000 | BJ23: PB | BK23: 1
AW24: PI | AZ24: PI | BC24: PI | BF24: PE | BJ24: PE
AW25: PR | AX25: 400000 | AZ25: PR | BA25: 270000 | BC25: PR | BD25: 130000 | BF25: PI | BJ25: PI
AW26: RJ | AZ26: RJ | BC26: RJ | BF26: PR | BG26: 130000 | BH26: 270000 | BJ26: PR | BK26: 1
AW27: RN | AZ27: RN | BC27: RN | BF27: RJ | BJ27: RJ
AW28: RO | AZ28: RO | BC28: RO | BF28: RN | BJ28: RN
AW29: RR | AX29: 8190 | AZ29: RR | BA29: 4452 | BC29: RR | BD29: 3738 | BF29: RO | BJ29: RO
AW30: RS | AX30: 300000 | AZ30: RS | BA30: 200000 | BC30: RS | BD30: 100000 | BF30: RR | BG30: 3738 | BH30: 4452 | BJ30: RR | BK30: 1
AW31: SC | AX31: 175317 | AZ31: SC | BA31: 84822 | BC31: SC | BD31: 90495 | BF31: RS | BG31: 100000 | BH31: 200000 | BJ31: RS | BK31: 1
AW32: SE | AX32: 35000 | AZ32: SE | BA32: 20000 | BC32: SE | BD32: 15000 | BF32: SC | BG32: 90495 | BH32: 84822 | BJ32: SC | BK32: 1
AW33: SP | AZ33: SP | BC33: SP | BF33: SE | BG33: 15000 | BH33: 20000 | BJ33: SE | BK33: 1
AW34: TO | AZ34: TO | BC34: TO | BF34: SP | BJ34: SP
AW35: Total Geral | AX35: 1496271 | AZ35: Total Geral | BA35: 876587 | BC35: Total Geral | BD35: 619684 | BF35: TO | BJ35: TO
BF36: Total Geral | BG36: 619684 | BH36: 876587 | BJ36: Total Geral | BK36: 12

Sheet Somas (hidden)
A1: Programas Sistema +1 | B1: Programas Nacionais | C1: Iniciativas - NA | D1: Sebrae UF | E1: Atividades gestao - UF | F1: Soma de Total
A2: 2 | B2: 1 | C2: =IFERROR(GETPIVOTDATA("[Measures].[Nº de Iniciativas - Ajustado]",Cubos!$G$7),0) -> 0 | D2: 13 | E2: 12 | F2: 13
A5: Estado | B5: Iniciativas Gestão | C5: Iniciativas Execução | D5: Iniciaitvas | E5: CSN | F5: Orçamento | G5: Clientes | H5: $\Cliente | I5: Universo PN | J5: Clientes PN | K5: % Cobertura | L5: População | M5: Clientes PF | N5: % População
A6: AC | B6: =VLOOKUP(Tabela5[[#This Row],[Estado]],Cubos!$BJ$9:$BK$35,2,FALSE) -> 1 | C6: =VLOOKUP(Tabela5[[#This Row],[Estado]],Cubos!$BM$9:$BN$35,2,FALSE) -> 1 | D6: =VLOOKUP(Tabela5[[#This Row],[Estado]],Cubos!$R$8:$T$34,2,FALSE) -> 2 | E6: =VLOOKUP(Tabela5[[#This Row],[Estado]],Cubos!$AE$8:$AF$34,2,FALSE) -> 897764 | F6: =VLOOKUP(A6,Cubos!$R$8:$T$34,3,FALSE) -> 10693251 | G6: =VLOOKUP(Tabela5[[#This Row],[Estado]],Cubos!$AW$8:$AX$34,2,FALSE) -> 20742 | H6: =IFERROR(ROUND(Tabela5[[#This Row],[Orçamento]]/Tabela5[[#This Row],[Clientes]],2),#N/A) -> 515.54 | I6: 28439 | J6: =VLOOKUP(Tabela5[[#This Row],[Estado]],Cubos!$AZ$8:$BA$34,2,FALSE) -> 12982 | K6: =IF(Tabela5[[#This Row],[Clientes PN]]>0,Tabela5[[#This Row],[Clientes PN]]/Tabela5[[#This Row],[Universo PN]],#N/A) -> 0.4564858117 | L6: 881935 | M6: =VLOOKUP(Tabela5[[#This Row],[Estado]],Cubos!$BC$8:$BD$34,2,FALSE) -> 7760 | N6: =IF(Tabela5[[#This Row],[Clientes PF]]>0,Tabela5[[#This Row],[Clientes PF]]/Tabela5[[#This Row],[População]],#N/A) -> 0.008798834381
A7: AL | B7: =VLOOKUP(Tabela5[[#This Row],[Estado]],Cubos!$BJ$9:$BK$35,2,FALSE) -> 0 | C7: =VLOOKUP(Tabela5[[#This Row],[Estado]],Cubos!$BM$9:$BN$35,2,FALSE) ->  | D7: =VLOOKUP(Tabela5[[#This Row],[Estado]],Cubos!$R$8:$T$34,2,FALSE) ->  | E7: =VLOOKUP(Tabela5[[#This Row],[Estado]],Cubos!$AE$8:$AF$34,2,FALSE) ->  | F7: =VLOOKUP(A7,Cubos!$R$8:$T$34,3,FALSE) ->  | G7: =VLOOKUP(Tabela5[[#This Row],[Estado]],Cubos!$AW$8:$AX$34,2,FALSE) -> 0 | H7: =IFERROR(ROUND(Tabela5[[#This Row],[Orçamento]]/Tabela5[[#This Row],[Clientes]],2),#N/A) ->  | I7: 178597 | J7: =VLOOKUP(Tabela5[[#This Row],[Estado]],Cubos!$AZ$8:$BA$34,2,FALSE) -> 0 | K7: =IF(Tabela5[[#This Row],[Clientes PN]]>0,Tabela5[[#This Row],[Clientes PN]]/Tabela5[[#This Row],[Universo PN]],#N/A) ->  | L7: 3337357 | M7: =VLOOKUP(Tabela5[[#This Row],[Estado]],Cubos!$BC$8:$BD$34,2,FALSE) -> 0 | N7: =IF(Tabela5[[#This Row],[Clientes PF]]>0,Tabela5[[#This Row],[Clientes PF]]/Tabela5[[#This Row],[População]],#N/A) -> 
A8: AM | B8: =VLOOKUP(Tabela5[[#This Row],[Estado]],Cubos!$BJ$9:$BK$35,2,FALSE) -> 1 | C8: =VLOOKUP(Tabela5[[#This Row],[Estado]],Cubos!$BM$9:$BN$35,2,FALSE) ->  | D8: =VLOOKUP(Tabela5[[#This Row],[Estado]],Cubos!$R$8:$T$34,2,FALSE) -> 1 | E8: =VLOOKUP(Tabela5[[#This Row],[Estado]],Cubos!$AE$8:$AF$34,2,FALSE) -> 6962100 | F8: =VLOOKUP(A8,Cubos!$R$8:$T$34,3,FALSE) -> 16097000 | G8: =VLOOKUP(Tabela5[[#This Row],[Estado]],Cubos!$AW$8:$AX$34,2,FALSE) -> 56430 | H8: =IFERROR(ROUND(Tabela5[[#This Row],[Orçamento]]/Tabela5[[#This Row],[Clientes]],2),#N/A) -> 285.26 | I8: 155757 | J8: =VLOOKUP(Tabela5[[#This Row],[Estado]],Cubos!$AZ$8:$BA$34,2,FALSE) -> 28430 | K8: =IF(Tabela5[[#This Row],[Clientes PN]]>0,Tabela5[[#This Row],[Clientes PN]]/Tabela5[[#This Row],[Universo PN]],#N/A) -> 0.1825279121 | L8: 4144597 | M8: =VLOOKUP(Tabela5[[#This Row],[Estado]],Cubos!$BC$8:$BD$34,2,FALSE) -> 28000 | N8: =IF(Tabela5[[#This Row],[Clientes PF]]>0,Tabela5[[#This Row],[Clientes PF]]/Tabela5[[#This Row],[População]],#N/A) -> 0.006755783494
A9: AP | B9: =VLOOKUP(Tabela5[[#This Row],[Estado]],Cubos!$BJ$9:$BK$35,2,FALSE) -> 0 | C9: =VLOOKUP(Tabela5[[#This Row],[Estado]],Cubos!$BM$9:$BN$35,2,FALSE) ->  | D9: =VLOOKUP(Tabela5[[#This Row],[Estado]],Cubos!$R$8:$T$34,2,FALSE) ->  | E9: =VLOOKUP(Tabela5[[#This Row],[Estado]],Cubos!$AE$8:$AF$34,2,FALSE) ->  | F9: =VLOOKUP(A9,Cubos!$R$8:$T$34,3,FALSE) ->  | G9: =VLOOKUP(Tabela5[[#This Row],[Estado]],Cubos!$AW$8:$AX$34,2,FALSE) -> 0 | H9: =IFERROR(ROUND(Tabela5[[#This Row],[Orçamento]]/Tabela5[[#This Row],[Clientes]],2),#N/A) ->  | I9: 35411 | J9: =VLOOKUP(Tabela5[[#This Row],[Estado]],Cubos!$AZ$8:$BA$34,2,FALSE) -> 0 | K9: =IF(Tabela5[[#This Row],[Clientes PN]]>0,Tabela5[[#This Row],[Clientes PN]]/Tabela5[[#This Row],[Universo PN]],#N/A) ->  | L9: 845731 | M9: =VLOOKUP(Tabela5[[#This Row],[Estado]],Cubos!$BC$8:$BD$34,2,FALSE) -> 0 | N9: =IF(Tabela5[[#This Row],[Clientes PF]]>0,Tabela5[[#This Row],[Clientes PF]]/Tabela5[[#This Row],[População]],#N/A) -> 
A10: BA | B10: =VLOOKUP(Tabela5[[#This Row],[Estado]],Cubos!$BJ$9:$BK$35,2,FALSE) -> 0 | C10: =VLOOKUP(Tabela5[[#This Row],[Estado]],Cubos!$BM$9:$BN$35,2,FALSE) ->  | D10: =VLOOKUP(Tabela5[[#This Row],[Estado]],Cubos!$R$8:$T$34,2,FALSE) ->  | E10: =VLOOKUP(Tabela5[[#This Row],[Estado]],Cubos!$AE$8:$AF$34,2,FALSE) ->  | F10: =VLOOKUP(A10,Cubos!$R$8:$T$34,3,FALSE) ->  | G10: =VLOOKUP(Tabela5[[#This Row],[Estado]],Cubos!$AW$8:$AX$34,2,FALSE) -> 0 | H10: =IFERROR(ROUND(Tabela5[[#This Row],[Orçamento]]/Tabela5[[#This Row],[Clientes]],2),#N/A) ->  | I10: 960907 | J10: =VLOOKUP(Tabela5[[#This Row],[Estado]],Cubos!$AZ$8:$BA$34,2,FALSE) -> 0 | K10: =IF(Tabela5[[#This Row],[Clientes PN]]>0,Tabela5[[#This Row],[Clientes PN]]/Tabela5[[#This Row],[Universo PN]],#N/A) ->  | L10: 14873064 | M10: =VLOOKUP(Tabela5[[#This Row],[Estado]],Cubos!$BC$8:$BD$34,2,FALSE) -> 0 | N10: =IF(Tabela5[[#This Row],[Clientes PF]]>0,Tabela5[[#This Row],[Clientes PF]]/Tabela5[[#This Row],[População]],#N/A) -> 
A11: CE | B11: =VLOOKUP(Tabela5[[#This Row],[Estado]],Cubos!$BJ$9:$BK$35,2,FALSE) -> 0 | C11: =VLOOKUP(Tabela5[[#This Row],[Estado]],Cubos!$BM$9:$BN$35,2,FALSE) ->  | D11: =VLOOKUP(Tabela5[[#This Row],[Estado]],Cubos!$R$8:$T$34,2,FALSE) ->  | E11: =VLOOKUP(Tabela5[[#This Row],[Estado]],Cubos!$AE$8:$AF$34,2,FALSE) ->  | F11: =VLOOKUP(A11,Cubos!$R$8:$T$34,3,FALSE) ->  | G11: =VLOOKUP(Tabela5[[#This Row],[Estado]],Cubos!$AW$8:$AX$34,2,FALSE) -> 0 | H11: =IFERROR(ROUND(Tabela5[[#This Row],[Orçamento]]/Tabela5[[#This Row],[Clientes]],2),#N/A) ->  | I11: 555901 | J11: =VLOOKUP(Tabela5[[#This Row],[Estado]],Cubos!$AZ$8:$BA$34,2,FALSE) -> 0 | K11: =IF(Tabela5[[#This Row],[Clientes PN]]>0,Tabela5[[#This Row],[Clientes PN]]/Tabela5[[#This Row],[Universo PN]],#N/A) ->  | L11: 9132078 | M11: =VLOOKUP(Tabela5[[#This Row],[Estado]],Cubos!$BC$8:$BD$34,2,FALSE) -> 0 | N11: =IF(Tabela5[[#This Row],[Clientes PF]]>0,Tabela5[[#This Row],[Clientes PF]]/Tabela5[[#This Row],[População]],#N/A) -> 
A12: DF | B12: =VLOOKUP(Tabela5[[#This Row],[Estado]],Cubos!$BJ$9:$BK$35,2,FALSE) -> 0 | C12: =VLOOKUP(Tabela5[[#This Row],[Estado]],Cubos!$BM$9:$BN$35,2,FALSE) ->  | D12: =VLOOKUP(Tabela5[[#This Row],[Estado]],Cubos!$R$8:$T$34,2,FALSE) ->  | E12: =VLOOKUP(Tabela5[[#This Row],[Estado]],Cubos!$AE$8:$AF$34,2,FALSE) ->  | F12: =VLOOKUP(A12,Cubos!$R$8:$T$34,3,FALSE) ->  | G12: =VLOOKUP(Tabela5[[#This Row],[Estado]],Cubos!$AW$8:$AX$34,2,FALSE) -> 0 | H12: =IFERROR(ROUND(Tabela5[[#This Row],[Orçamento]]/Tabela5[[#This Row],[Clientes]],2),#N/A) ->  | I12: 327572 | J12: =VLOOKUP(Tabela5[[#This Row],[Estado]],Cubos!$AZ$8:$BA$34,2,FALSE) -> 0 | K12: =IF(Tabela5[[#This Row],[Clientes PN]]>0,Tabela5[[#This Row],[Clientes PN]]/Tabela5[[#This Row],[Universo PN]],#N/A) ->  | L12: 3015268 | M12: =VLOOKUP(Tabela5[[#This Row],[Estado]],Cubos!$BC$8:$BD$34,2,FALSE) -> 0 | N12: =IF(Tabela5[[#This Row],[Clientes PF]]>0,Tabela5[[#This Row],[Clientes PF]]/Tabela5[[#This Row],[População]],#N/A) -> 
A13: ES | B13: =VLOOKUP(Tabela5[[#This Row],[Estado]],Cubos!$BJ$9:$BK$35,2,FALSE) -> 1 | C13: =VLOOKUP(Tabela5[[#This Row],[Estado]],Cubos!$BM$9:$BN$35,2,FALSE) ->  | D13: =VLOOKUP(Tabela5[[#This Row],[Estado]],Cubos!$R$8:$T$34,2,FALSE) -> 1 | E13: =VLOOKUP(Tabela5[[#This Row],[Estado]],Cubos!$AE$8:$AF$34,2,FALSE) -> 13805561 | F13: =VLOOKUP(A13,Cubos!$R$8:$T$34,3,FALSE) -> 25360461 | G13: =VLOOKUP(Tabela5[[#This Row],[Estado]],Cubos!$AW$8:$AX$34,2,FALSE) -> 104365 | H13: =IFERROR(ROUND(Tabela5[[#This Row],[Orçamento]]/Tabela5[[#This Row],[Clientes]],2),#N/A) -> 243 | I13: 359369 | J13: =VLOOKUP(Tabela5[[#This Row],[Estado]],Cubos!$AZ$8:$BA$34,2,FALSE) -> 62268 | K13: =IF(Tabela5[[#This Row],[Clientes PN]]>0,Tabela5[[#This Row],[Clientes PN]]/Tabela5[[#This Row],[Universo PN]],#N/A) -> 0.1732703711 | L13: 4018650 | M13: =VLOOKUP(Tabela5[[#This Row],[Estado]],Cubos!$BC$8:$BD$34,2,FALSE) -> 42097 | N13: =IF(Tabela5[[#This Row],[Clientes PF]]>0,Tabela5[[#This Row],[Clientes PF]]/Tabela5[[#This Row],[População]],#N/A) -> 0.01047540841
A14: GO | B14: =VLOOKUP(Tabela5[[#This Row],[Estado]],Cubos!$BJ$9:$BK$35,2,FALSE) -> 1 | C14: =VLOOKUP(Tabela5[[#This Row],[Estado]],Cubos!$BM$9:$BN$35,2,FALSE) ->  | D14: =VLOOKUP(Tabela5[[#This Row],[Estado]],Cubos!$R$8:$T$34,2,FALSE) -> 1 | E14: =VLOOKUP(Tabela5[[#This Row],[Estado]],Cubos!$AE$8:$AF$34,2,FALSE) -> 12922459 | F14: =VLOOKUP(A14,Cubos!$R$8:$T$34,3,FALSE) -> 20080000 | G14: =VLOOKUP(Tabela5[[#This Row],[Estado]],Cubos!$AW$8:$AX$34,2,FALSE) -> 186227 | H14: =IFERROR(ROUND(Tabela5[[#This Row],[Orçamento]]/Tabela5[[#This Row],[Clientes]],2),#N/A) -> 107.83 | I14: 635769 | J14: =VLOOKUP(Tabela5[[#This Row],[Estado]],Cubos!$AZ$8:$BA$34,2,FALSE) -> 78633 | K14: =IF(Tabela5[[#This Row],[Clientes PN]]>0,Tabela5[[#This Row],[Clientes PN]]/Tabela5[[#This Row],[Universo PN]],#N/A) -> 0.1236817146 | L14: 7018354 | M14: =VLOOKUP(Tabela5[[#This Row],[Estado]],Cubos!$BC$8:$BD$34,2,FALSE) -> 107594 | N14: =IF(Tabela5[[#This Row],[Clientes PF]]>0,Tabela5[[#This Row],[Clientes PF]]/Tabela5[[#This Row],[População]],#N/A) -> 0.01533037518
A15: MA | B15: =VLOOKUP(Tabela5[[#This Row],[Estado]],Cubos!$BJ$9:$BK$35,2,FALSE) -> 1 | C15: =VLOOKUP(Tabela5[[#This Row],[Estado]],Cubos!$BM$9:$BN$35,2,FALSE) ->  | D15: =VLOOKUP(Tabela5[[#This Row],[Estado]],Cubos!$R$8:$T$34,2,FALSE) -> 1 | E15: =VLOOKUP(Tabela5[[#This Row],[Estado]],Cubos!$AE$8:$AF$34,2,FALSE) ->  | F15: =VLOOKUP(A15,Cubos!$R$8:$T$34,3,FALSE) -> 0 | G15: =VLOOKUP(Tabela5[[#This Row],[Estado]],Cubos!$AW$8:$AX$34,2,FALSE) -> 70000 | H15: =IFERROR(ROUND(Tabela5[[#This Row],[Orçamento]]/Tabela5[[#This Row],[Clientes]],2),#N/A) -> 0 | I15: 259268 | J15: =VLOOKUP(Tabela5[[#This Row],[Estado]],Cubos!$AZ$8:$BA$34,2,FALSE) -> 40000 | K15: =IF(Tabela5[[#This Row],[Clientes PN]]>0,Tabela5[[#This Row],[Clientes PN]]/Tabela5[[#This Row],[Universo PN]],#N/A) -> 0.1542805128 | L15: 7075181 | M15: =VLOOKUP(Tabela5[[#This Row],[Estado]],Cubos!$BC$8:$BD$34,2,FALSE) -> 30000 | N15: =IF(Tabela5[[#This Row],[Clientes PF]]>0,Tabela5[[#This Row],[Clientes PF]]/Tabela5[[#This Row],[População]],#N/A) -> 0.004240174209
A16: MG | B16: =VLOOKUP(Tabela5[[#This Row],[Estado]],Cubos!$BJ$9:$BK$35,2,FALSE) -> 0 | C16: =VLOOKUP(Tabela5[[#This Row],[Estado]],Cubos!$BM$9:$BN$35,2,FALSE) ->  | D16: =VLOOKUP(Tabela5[[#This Row],[Estado]],Cubos!$R$8:$T$34,2,FALSE) ->  | E16: =VLOOKUP(Tabela5[[#This Row],[Estado]],Cubos!$AE$8:$AF$34,2,FALSE) ->  | F16: =VLOOKUP(A16,Cubos!$R$8:$T$34,3,FALSE) ->  | G16: =VLOOKUP(Tabela5[[#This Row],[Estado]],Cubos!$AW$8:$AX$34,2,FALSE) -> 0 | H16: =IFERROR(ROUND(Tabela5[[#This Row],[Orçamento]]/Tabela5[[#This Row],[Clientes]],2),#N/A) ->  | I16: 1813982 | J16: =VLOOKUP(Tabela5[[#This Row],[Estado]],Cubos!$AZ$8:$BA$34,2,FALSE) -> 0 | K16: =IF(Tabela5[[#This Row],[Clientes PN]]>0,Tabela5[[#This Row],[Clientes PN]]/Tabela5[[#This Row],[Universo PN]],#N/A) ->  | L16: 21168791 | M16: =VLOOKUP(Tabela5[[#This Row],[Estado]],Cubos!$BC$8:$BD$34,2,FALSE) -> 0 | N16: =IF(Tabela5[[#This Row],[Clientes PF]]>0,Tabela5[[#This Row],[Clientes PF]]/Tabela5[[#This Row],[População]],#N/A) -> 
A17: MS | B17: =VLOOKUP(Tabela5[[#This Row],[Estado]],Cubos!$BJ$9:$BK$35,2,FALSE) -> 1 | C17: =VLOOKUP(Tabela5[[#This Row],[Estado]],Cubos!$BM$9:$BN$35,2,FALSE) ->  | D17: =VLOOKUP(Tabela5[[#This Row],[Estado]],Cubos!$R$8:$T$34,2,FALSE) -> 1 | E17: =VLOOKUP(Tabela5[[#This Row],[Estado]],Cubos!$AE$8:$AF$34,2,FALSE) -> 10372997 | F17: =VLOOKUP(A17,Cubos!$R$8:$T$34,3,FALSE) -> 15418567 | G17: =VLOOKUP(Tabela5[[#This Row],[Estado]],Cubos!$AW$8:$AX$34,2,FALSE) -> 75000 | H17: =IFERROR(ROUND(Tabela5[[#This Row],[Orçamento]]/Tabela5[[#This Row],[Clientes]],2),#N/A) -> 205.58 | I17: 250276 | J17: =VLOOKUP(Tabela5[[#This Row],[Estado]],Cubos!$AZ$8:$BA$34,2,FALSE) -> 40000 | K17: =IF(Tabela5[[#This Row],[Clientes PN]]>0,Tabela5[[#This Row],[Clientes PN]]/Tabela5[[#This Row],[Universo PN]],#N/A) -> 0.1598235548 | L17: 2778986 | M17: =VLOOKUP(Tabela5[[#This Row],[Estado]],Cubos!$BC$8:$BD$34,2,FALSE) -> 35000 | N17: =IF(Tabela5[[#This Row],[Clientes PF]]>0,Tabela5[[#This Row],[Clientes PF]]/Tabela5[[#This Row],[População]],#N/A) -> 0.01259452189
A18: MT | B18: =VLOOKUP(Tabela5[[#This Row],[Estado]],Cubos!$BJ$9:$BK$35,2,FALSE) -> 0 | C18: =VLOOKUP(Tabela5[[#This Row],[Estado]],Cubos!$BM$9:$BN$35,2,FALSE) ->  | D18: =VLOOKUP(Tabela5[[#This Row],[Estado]],Cubos!$R$8:$T$34,2,FALSE) ->  | E18: =VLOOKUP(Tabela5[[#This Row],[Estado]],Cubos!$AE$8:$AF$34,2,FALSE) ->  | F18: =VLOOKUP(A18,Cubos!$R$8:$T$34,3,FALSE) ->  | G18: =VLOOKUP(Tabela5[[#This Row],[Estado]],Cubos!$AW$8:$AX$34,2,FALSE) -> 0 | H18: =IFERROR(ROUND(Tabela5[[#This Row],[Orçamento]]/Tabela5[[#This Row],[Clientes]],2),#N/A) ->  | I18: 328811 | J18: =VLOOKUP(Tabela5[[#This Row],[Estado]],Cubos!$AZ$8:$BA$34,2,FALSE) -> 0 | K18: =IF(Tabela5[[#This Row],[Clientes PN]]>0,Tabela5[[#This Row],[Clientes PN]]/Tabela5[[#This Row],[Universo PN]],#N/A) ->  | L18: 3484466 | M18: =VLOOKUP(Tabela5[[#This Row],[Estado]],Cubos!$BC$8:$BD$34,2,FALSE) -> 0 | N18: =IF(Tabela5[[#This Row],[Clientes PF]]>0,Tabela5[[#This Row],[Clientes PF]]/Tabela5[[#This Row],[População]],#N/A) -> 
A19: PA | B19: =VLOOKUP(Tabela5[[#This Row],[Estado]],Cubos!$BJ$9:$BK$35,2,FALSE) -> 0 | C19: =VLOOKUP(Tabela5[[#This Row],[Estado]],Cubos!$BM$9:$BN$35,2,FALSE) ->  | D19: =VLOOKUP(Tabela5[[#This Row],[Estado]],Cubos!$R$8:$T$34,2,FALSE) ->  | E19: =VLOOKUP(Tabela5[[#This Row],[Estado]],Cubos!$AE$8:$AF$34,2,FALSE) ->  | F19: =VLOOKUP(A19,Cubos!$R$8:$T$34,3,FALSE) ->  | G19: =VLOOKUP(Tabela5[[#This Row],[Estado]],Cubos!$AW$8:$AX$34,2,FALSE) -> 0 | H19: =IFERROR(ROUND(Tabela5[[#This Row],[Orçamento]]/Tabela5[[#This Row],[Clientes]],2),#N/A) ->  | I19: 406466 | J19: =VLOOKUP(Tabela5[[#This Row],[Estado]],Cubos!$AZ$8:$BA$34,2,FALSE) -> 0 | K19: =IF(Tabela5[[#This Row],[Clientes PN]]>0,Tabela5[[#This Row],[Clientes PN]]/Tabela5[[#This Row],[Universo PN]],#N/A) ->  | L19: 8602865 | M19: =VLOOKUP(Tabela5[[#This Row],[Estado]],Cubos!$BC$8:$BD$34,2,FALSE) -> 0 | N19: =IF(Tabela5[[#This Row],[Clientes PF]]>0,Tabela5[[#This Row],[Clientes PF]]/Tabela5[[#This Row],[População]],#N/A) -> 
A20: PB | B20: =VLOOKUP(Tabela5[[#This Row],[Estado]],Cubos!$BJ$9:$BK$35,2,FALSE) -> 1 | C20: =VLOOKUP(Tabela5[[#This Row],[Estado]],Cubos!$BM$9:$BN$35,2,FALSE) ->  | D20: =VLOOKUP(Tabela5[[#This Row],[Estado]],Cubos!$R$8:$T$34,2,FALSE) -> 1 | E20: =VLOOKUP(Tabela5[[#This Row],[Estado]],Cubos!$AE$8:$AF$34,2,FALSE) -> 10889975 | F20: =VLOOKUP(A20,Cubos!$R$8:$T$34,3,FALSE) -> 20992832 | G20: =VLOOKUP(Tabela5[[#This Row],[Estado]],Cubos!$AW$8:$AX$34,2,FALSE) -> 65000 | H20: =IFERROR(ROUND(Tabela5[[#This Row],[Orçamento]]/Tabela5[[#This Row],[Clientes]],2),#N/A) -> 322.97 | I20: 208726 | J20: =VLOOKUP(Tabela5[[#This Row],[Estado]],Cubos!$AZ$8:$BA$34,2,FALSE) -> 35000 | K20: =IF(Tabela5[[#This Row],[Clientes PN]]>0,Tabela5[[#This Row],[Clientes PN]]/Tabela5[[#This Row],[Universo PN]],#N/A) -> 0.1676839493 | L20: 4018127 | M20: =VLOOKUP(Tabela5[[#This Row],[Estado]],Cubos!$BC$8:$BD$34,2,FALSE) -> 30000 | N20: =IF(Tabela5[[#This Row],[Clientes PF]]>0,Tabela5[[#This Row],[Clientes PF]]/Tabela5[[#This Row],[População]],#N/A) -> 0.007466165206
A21: PE | B21: =VLOOKUP(Tabela5[[#This Row],[Estado]],Cubos!$BJ$9:$BK$35,2,FALSE) -> 0 | C21: =VLOOKUP(Tabela5[[#This Row],[Estado]],Cubos!$BM$9:$BN$35,2,FALSE) ->  | D21: =VLOOKUP(Tabela5[[#This Row],[Estado]],Cubos!$R$8:$T$34,2,FALSE) ->  | E21: =VLOOKUP(Tabela5[[#This Row],[Estado]],Cubos!$AE$8:$AF$34,2,FALSE) ->  | F21: =VLOOKUP(A21,Cubos!$R$8:$T$34,3,FALSE) ->  | G21: =VLOOKUP(Tabela5[[#This Row],[Estado]],Cubos!$AW$8:$AX$34,2,FALSE) -> 0 | H21: =IFERROR(ROUND(Tabela5[[#This Row],[Orçamento]]/Tabela5[[#This Row],[Clientes]],2),#N/A) ->  | I21: 558920 | J21: =VLOOKUP(Tabela5[[#This Row],[Estado]],Cubos!$AZ$8:$BA$34,2,FALSE) -> 0 | K21: =IF(Tabela5[[#This Row],[Clientes PN]]>0,Tabela5[[#This Row],[Clientes PN]]/Tabela5[[#This Row],[Universo PN]],#N/A) ->  | L21: 9557071 | M21: =VLOOKUP(Tabela5[[#This Row],[Estado]],Cubos!$BC$8:$BD$34,2,FALSE) -> 0 | N21: =IF(Tabela5[[#This Row],[Clientes PF]]>0,Tabela5[[#This Row],[Clientes PF]]/Tabela5[[#This Row],[População]],#N/A) -> 
A22: PI | B22: =VLOOKUP(Tabela5[[#This Row],[Estado]],Cubos!$BJ$9:$BK$35,2,FALSE) -> 0 | C22: =VLOOKUP(Tabela5[[#This Row],[Estado]],Cubos!$BM$9:$BN$35,2,FALSE) ->  | D22: =VLOOKUP(Tabela5[[#This Row],[Estado]],Cubos!$R$8:$T$34,2,FALSE) ->  | E22: =VLOOKUP(Tabela5[[#This Row],[Estado]],Cubos!$AE$8:$AF$34,2,FALSE) ->  | F22: =VLOOKUP(A22,Cubos!$R$8:$T$34,3,FALSE) ->  | G22: =VLOOKUP(Tabela5[[#This Row],[Estado]],Cubos!$AW$8:$AX$34,2,FALSE) -> 0 | H22: =IFERROR(ROUND(Tabela5[[#This Row],[Orçamento]]/Tabela5[[#This Row],[Clientes]],2),#N/A) ->  | I22: 158789 | J22: =VLOOKUP(Tabela5[[#This Row],[Estado]],Cubos!$AZ$8:$BA$34,2,FALSE) -> 0 | K22: =IF(Tabela5[[#This Row],[Clientes PN]]>0,Tabela5[[#This Row],[Clientes PN]]/Tabela5[[#This Row],[Universo PN]],#N/A) ->  | L22: 3273227 | M22: =VLOOKUP(Tabela5[[#This Row],[Estado]],Cubos!$BC$8:$BD$34,2,FALSE) -> 0 | N22: =IF(Tabela5[[#This Row],[Clientes PF]]>0,Tabela5[[#This Row],[Clientes PF]]/Tabela5[[#This Row],[População]],#N/A) -> 
A23: PR | B23: =VLOOKUP(Tabela5[[#This Row],[Estado]],Cubos!$BJ$9:$BK$35,2,FALSE) -> 1 | C23: =VLOOKUP(Tabela5[[#This Row],[Estado]],Cubos!$BM$9:$BN$35,2,FALSE) ->  | D23: =VLOOKUP(Tabela5[[#This Row],[Estado]],Cubos!$R$8:$T$34,2,FALSE) -> 1 | E23: =VLOOKUP(Tabela5[[#This Row],[Estado]],Cubos!$AE$8:$AF$34,2,FALSE) -> 22828932 | F23: =VLOOKUP(A23,Cubos!$R$8:$T$34,3,FALSE) -> 38239170 | G23: =VLOOKUP(Tabela5[[#This Row],[Estado]],Cubos!$AW$8:$AX$34,2,FALSE) -> 400000 | H23: =IFERROR(ROUND(Tabela5[[#This Row],[Orçamento]]/Tabela5[[#This Row],[Clientes]],2),#N/A) -> 95.6 | I23: 1186441 | J23: =VLOOKUP(Tabela5[[#This Row],[Estado]],Cubos!$AZ$8:$BA$34,2,FALSE) -> 270000 | K23: =IF(Tabela5[[#This Row],[Clientes PN]]>0,Tabela5[[#This Row],[Clientes PN]]/Tabela5[[#This Row],[Universo PN]],#N/A) -> 0.2275713668 | L23: 11433957 | M23: =VLOOKUP(Tabela5[[#This Row],[Estado]],Cubos!$BC$8:$BD$34,2,FALSE) -> 130000 | N23: =IF(Tabela5[[#This Row],[Clientes PF]]>0,Tabela5[[#This Row],[Clientes PF]]/Tabela5[[#This Row],[População]],#N/A) -> 0.0113696422
A24: RJ | B24: =VLOOKUP(Tabela5[[#This Row],[Estado]],Cubos!$BJ$9:$BK$35,2,FALSE) -> 0 | C24: =VLOOKUP(Tabela5[[#This Row],[Estado]],Cubos!$BM$9:$BN$35,2,FALSE) ->  | D24: =VLOOKUP(Tabela5[[#This Row],[Estado]],Cubos!$R$8:$T$34,2,FALSE) ->  | E24: =VLOOKUP(Tabela5[[#This Row],[Estado]],Cubos!$AE$8:$AF$34,2,FALSE) ->  | F24: =VLOOKUP(A24,Cubos!$R$8:$T$34,3,FALSE) ->  | G24: =VLOOKUP(Tabela5[[#This Row],[Estado]],Cubos!$AW$8:$AX$34,2,FALSE) -> 0 | H24: =IFERROR(ROUND(Tabela5[[#This Row],[Orçamento]]/Tabela5[[#This Row],[Clientes]],2),#N/A) ->  | I24: 1821043 | J24: =VLOOKUP(Tabela5[[#This Row],[Estado]],Cubos!$AZ$8:$BA$34,2,FALSE) -> 0 | K24: =IF(Tabela5[[#This Row],[Clientes PN]]>0,Tabela5[[#This Row],[Clientes PN]]/Tabela5[[#This Row],[Universo PN]],#N/A) ->  | L24: 17264943 | M24: =VLOOKUP(Tabela5[[#This Row],[Estado]],Cubos!$BC$8:$BD$34,2,FALSE) -> 0 | N24: =IF(Tabela5[[#This Row],[Clientes PF]]>0,Tabela5[[#This Row],[Clientes PF]]/Tabela5[[#This Row],[População]],#N/A) -> 
A25: RN | B25: =VLOOKUP(Tabela5[[#This Row],[Estado]],Cubos!$BJ$9:$BK$35,2,FALSE) -> 0 | C25: =VLOOKUP(Tabela5[[#This Row],[Estado]],Cubos!$BM$9:$BN$35,2,FALSE) ->  | D25: =VLOOKUP(Tabela5[[#This Row],[Estado]],Cubos!$R$8:$T$34,2,FALSE) ->  | E25: =VLOOKUP(Tabela5[[#This Row],[Estado]],Cubos!$AE$8:$AF$34,2,FALSE) ->  | F25: =VLOOKUP(A25,Cubos!$R$8:$T$34,3,FALSE) ->  | G25: =VLOOKUP(Tabela5[[#This Row],[Estado]],Cubos!$AW$8:$AX$34,2,FALSE) -> 0 | H25: =IFERROR(ROUND(Tabela5[[#This Row],[Orçamento]]/Tabela5[[#This Row],[Clientes]],2),#N/A) ->  | I25: 210638 | J25: =VLOOKUP(Tabela5[[#This Row],[Estado]],Cubos!$AZ$8:$BA$34,2,FALSE) -> 0 | K25: =IF(Tabela5[[#This Row],[Clientes PN]]>0,Tabela5[[#This Row],[Clientes PN]]/Tabela5[[#This Row],[Universo PN]],#N/A) ->  | L25: 3506853 | M25: =VLOOKUP(Tabela5[[#This Row],[Estado]],Cubos!$BC$8:$BD$34,2,FALSE) -> 0 | N25: =IF(Tabela5[[#This Row],[Clientes PF]]>0,Tabela5[[#This Row],[Clientes PF]]/Tabela5[[#This Row],[População]],#N/A) -> 
A26: RO | B26: =VLOOKUP(Tabela5[[#This Row],[Estado]],Cubos!$BJ$9:$BK$35,2,FALSE) -> 0 | C26: =VLOOKUP(Tabela5[[#This Row],[Estado]],Cubos!$BM$9:$BN$35,2,FALSE) ->  | D26: =VLOOKUP(Tabela5[[#This Row],[Estado]],Cubos!$R$8:$T$34,2,FALSE) ->  | E26: =VLOOKUP(Tabela5[[#This Row],[Estado]],Cubos!$AE$8:$AF$34,2,FALSE) ->  | F26: =VLOOKUP(A26,Cubos!$R$8:$T$34,3,FALSE) ->  | G26: =VLOOKUP(Tabela5[[#This Row],[Estado]],Cubos!$AW$8:$AX$34,2,FALSE) -> 0 | H26: =IFERROR(ROUND(Tabela5[[#This Row],[Orçamento]]/Tabela5[[#This Row],[Clientes]],2),#N/A) ->  | I26: 103849 | J26: =VLOOKUP(Tabela5[[#This Row],[Estado]],Cubos!$AZ$8:$BA$34,2,FALSE) -> 0 | K26: =IF(Tabela5[[#This Row],[Clientes PN]]>0,Tabela5[[#This Row],[Clientes PN]]/Tabela5[[#This Row],[Universo PN]],#N/A) ->  | L26: 1777225 | M26: =VLOOKUP(Tabela5[[#This Row],[Estado]],Cubos!$BC$8:$BD$34,2,FALSE) -> 0 | N26: =IF(Tabela5[[#This Row],[Clientes PF]]>0,Tabela5[[#This Row],[Clientes PF]]/Tabela5[[#This Row],[População]],#N/A) -> 
A27: RR | B27: =VLOOKUP(Tabela5[[#This Row],[Estado]],Cubos!$BJ$9:$BK$35,2,FALSE) -> 1 | C27: =VLOOKUP(Tabela5[[#This Row],[Estado]],Cubos!$BM$9:$BN$35,2,FALSE) ->  | D27: =VLOOKUP(Tabela5[[#This Row],[Estado]],Cubos!$R$8:$T$34,2,FALSE) -> 1 | E27: =VLOOKUP(Tabela5[[#This Row],[Estado]],Cubos!$AE$8:$AF$34,2,FALSE) ->  | F27: =VLOOKUP(A27,Cubos!$R$8:$T$34,3,FALSE) -> 0 | G27: =VLOOKUP(Tabela5[[#This Row],[Estado]],Cubos!$AW$8:$AX$34,2,FALSE) -> 8190 | H27: =IFERROR(ROUND(Tabela5[[#This Row],[Orçamento]]/Tabela5[[#This Row],[Clientes]],2),#N/A) -> 0 | I27: 27194 | J27: =VLOOKUP(Tabela5[[#This Row],[Estado]],Cubos!$AZ$8:$BA$34,2,FALSE) -> 4452 | K27: =IF(Tabela5[[#This Row],[Clientes PN]]>0,Tabela5[[#This Row],[Clientes PN]]/Tabela5[[#This Row],[Universo PN]],#N/A) -> 0.1637125837 | L27: 605761 | M27: =VLOOKUP(Tabela5[[#This Row],[Estado]],Cubos!$BC$8:$BD$34,2,FALSE) -> 3738 | N27: =IF(Tabela5[[#This Row],[Clientes PF]]>0,Tabela5[[#This Row],[Clientes PF]]/Tabela5[[#This Row],[População]],#N/A) -> 0.006170750511
A28: RS | B28: =VLOOKUP(Tabela5[[#This Row],[Estado]],Cubos!$BJ$9:$BK$35,2,FALSE) -> 1 | C28: =VLOOKUP(Tabela5[[#This Row],[Estado]],Cubos!$BM$9:$BN$35,2,FALSE) ->  | D28: =VLOOKUP(Tabela5[[#This Row],[Estado]],Cubos!$R$8:$T$34,2,FALSE) -> 1 | E28: =VLOOKUP(Tabela5[[#This Row],[Estado]],Cubos!$AE$8:$AF$34,2,FALSE) -> 14000000 | F28: =VLOOKUP(A28,Cubos!$R$8:$T$34,3,FALSE) -> 29000000 | G28: =VLOOKUP(Tabela5[[#This Row],[Estado]],Cubos!$AW$8:$AX$34,2,FALSE) -> 300000 | H28: =IFERROR(ROUND(Tabela5[[#This Row],[Orçamento]]/Tabela5[[#This Row],[Clientes]],2),#N/A) -> 96.67 | I28: 1159526 | J28: =VLOOKUP(Tabela5[[#This Row],[Estado]],Cubos!$AZ$8:$BA$34,2,FALSE) -> 200000 | K28: =IF(Tabela5[[#This Row],[Clientes PN]]>0,Tabela5[[#This Row],[Clientes PN]]/Tabela5[[#This Row],[Universo PN]],#N/A) -> 0.1724842737 | L28: 11377239 | M28: =VLOOKUP(Tabela5[[#This Row],[Estado]],Cubos!$BC$8:$BD$34,2,FALSE) -> 100000 | N28: =IF(Tabela5[[#This Row],[Clientes PF]]>0,Tabela5[[#This Row],[Clientes PF]]/Tabela5[[#This Row],[População]],#N/A) -> 0.008789478713
A29: SC | B29: =VLOOKUP(Tabela5[[#This Row],[Estado]],Cubos!$BJ$9:$BK$35,2,FALSE) -> 1 | C29: =VLOOKUP(Tabela5[[#This Row],[Estado]],Cubos!$BM$9:$BN$35,2,FALSE) ->  | D29: =VLOOKUP(Tabela5[[#This Row],[Estado]],Cubos!$R$8:$T$34,2,FALSE) -> 1 | E29: =VLOOKUP(Tabela5[[#This Row],[Estado]],Cubos!$AE$8:$AF$34,2,FALSE) ->  | F29: =VLOOKUP(A29,Cubos!$R$8:$T$34,3,FALSE) -> 0 | G29: =VLOOKUP(Tabela5[[#This Row],[Estado]],Cubos!$AW$8:$AX$34,2,FALSE) -> 175317 | H29: =IFERROR(ROUND(Tabela5[[#This Row],[Orçamento]]/Tabela5[[#This Row],[Clientes]],2),#N/A) -> 0 | I29: 765504 | J29: =VLOOKUP(Tabela5[[#This Row],[Estado]],Cubos!$AZ$8:$BA$34,2,FALSE) -> 84822 | K29: =IF(Tabela5[[#This Row],[Clientes PN]]>0,Tabela5[[#This Row],[Clientes PN]]/Tabela5[[#This Row],[Universo PN]],#N/A) -> 0.1108054301 | L29: 7164788 | M29: =VLOOKUP(Tabela5[[#This Row],[Estado]],Cubos!$BC$8:$BD$34,2,FALSE) -> 90495 | N29: =IF(Tabela5[[#This Row],[Clientes PF]]>0,Tabela5[[#This Row],[Clientes PF]]/Tabela5[[#This Row],[População]],#N/A) -> 0.01263052026
A30: SE | B30: =VLOOKUP(Tabela5[[#This Row],[Estado]],Cubos!$BJ$9:$BK$35,2,FALSE) -> 1 | C30: =VLOOKUP(Tabela5[[#This Row],[Estado]],Cubos!$BM$9:$BN$35,2,FALSE) ->  | D30: =VLOOKUP(Tabela5[[#This Row],[Estado]],Cubos!$R$8:$T$34,2,FALSE) -> 1 | E30: =VLOOKUP(Tabela5[[#This Row],[Estado]],Cubos!$AE$8:$AF$34,2,FALSE) ->  | F30: =VLOOKUP(A30,Cubos!$R$8:$T$34,3,FALSE) -> 0 | G30: =VLOOKUP(Tabela5[[#This Row],[Estado]],Cubos!$AW$8:$AX$34,2,FALSE) -> 35000 | H30: =IFERROR(ROUND(Tabela5[[#This Row],[Orçamento]]/Tabela5[[#This Row],[Clientes]],2),#N/A) -> 0 | I30: 115986 | J30: =VLOOKUP(Tabela5[[#This Row],[Estado]],Cubos!$AZ$8:$BA$34,2,FALSE) -> 20000 | K30: =IF(Tabela5[[#This Row],[Clientes PN]]>0,Tabela5[[#This Row],[Clientes PN]]/Tabela5[[#This Row],[Universo PN]],#N/A) -> 0.1724346042 | L30: 2298696 | M30: =VLOOKUP(Tabela5[[#This Row],[Estado]],Cubos!$BC$8:$BD$34,2,FALSE) -> 15000 | N30: =IF(Tabela5[[#This Row],[Clientes PF]]>0,Tabela5[[#This Row],[Clientes PF]]/Tabela5[[#This Row],[População]],#N/A) -> 0.006525438771
A31: SP | B31: =VLOOKUP(Tabela5[[#This Row],[Estado]],Cubos!$BJ$9:$BK$35,2,FALSE) -> 0 | C31: =VLOOKUP(Tabela5[[#This Row],[Estado]],Cubos!$BM$9:$BN$35,2,FALSE) -> 12 | D31: =VLOOKUP(Tabela5[[#This Row],[Estado]],Cubos!$R$8:$T$34,2,FALSE) -> 12 | E31: =VLOOKUP(Tabela5[[#This Row],[Estado]],Cubos!$AE$8:$AF$34,2,FALSE) ->  | F31: =VLOOKUP(A31,Cubos!$R$8:$T$34,3,FALSE) -> 0 | G31: =VLOOKUP(Tabela5[[#This Row],[Estado]],Cubos!$AW$8:$AX$34,2,FALSE) -> 0 | H31: =IFERROR(ROUND(Tabela5[[#This Row],[Orçamento]]/Tabela5[[#This Row],[Clientes]],2),#N/A) ->  | I31: 4871165 | J31: =VLOOKUP(Tabela5[[#This Row],[Estado]],Cubos!$AZ$8:$BA$34,2,FALSE) -> 0 | K31: =IF(Tabela5[[#This Row],[Clientes PN]]>0,Tabela5[[#This Row],[Clientes PN]]/Tabela5[[#This Row],[Universo PN]],#N/A) ->  | L31: 45919049 | M31: =VLOOKUP(Tabela5[[#This Row],[Estado]],Cubos!$BC$8:$BD$34,2,FALSE) -> 0 | N31: =IF(Tabela5[[#This Row],[Clientes PF]]>0,Tabela5[[#This Row],[Clientes PF]]/Tabela5[[#This Row],[População]],#N/A) -> 
A32: TO | B32: =VLOOKUP(Tabela5[[#This Row],[Estado]],Cubos!$BJ$9:$BK$35,2,FALSE) -> 0 | C32: =VLOOKUP(Tabela5[[#This Row],[Estado]],Cubos!$BM$9:$BN$35,2,FALSE) ->  | D32: =VLOOKUP(Tabela5[[#This Row],[Estado]],Cubos!$R$8:$T$34,2,FALSE) ->  | E32: =VLOOKUP(Tabela5[[#This Row],[Estado]],Cubos!$AE$8:$AF$34,2,FALSE) ->  | F32: =VLOOKUP(A32,Cubos!$R$8:$T$34,3,FALSE) ->  | G32: =VLOOKUP(Tabela5[[#This Row],[Estado]],Cubos!$AW$8:$AX$34,2,FALSE) -> 0 | H32: =IFERROR(ROUND(Tabela5[[#This Row],[Orçamento]]/Tabela5[[#This Row],[Clientes]],2),#N/A) ->  | I32: 103578 | J32: =VLOOKUP(Tabela5[[#This Row],[Estado]],Cubos!$AZ$8:$BA$34,2,FALSE) -> 0 | K32: =IF(Tabela5[[#This Row],[Clientes PN]]>0,Tabela5[[#This Row],[Clientes PN]]/Tabela5[[#This Row],[Universo PN]],#N/A) ->  | L32: 1572866 | M32: =VLOOKUP(Tabela5[[#This Row],[Estado]],Cubos!$BC$8:$BD$34,2,FALSE) -> 0 | N32: =IF(Tabela5[[#This Row],[Clientes PF]]>0,Tabela5[[#This Row],[Clientes PF]]/Tabela5[[#This Row],[População]],#N/A) -> 
A33: Total | B33: =SUBTOTAL(109,Tabela5[Iniciativas Gestão]) -> 12 | C33: =SUBTOTAL(109,Tabela5[Iniciativas Execução]) ->  | D33: =SUBTOTAL(109,Tabela5[Iniciaitvas]) ->  | E33: =SUBTOTAL(109,Tabela5[CSN]) ->  | F33: =GETPIVOTDATA("[Measures].[Valor de Despesa Orçado - Ajustado]",Cubos!$R$7) -> 175881281 | G33: =SUBTOTAL(109,Tabela5[Clientes]) -> 1496271 | H33: =SUBTOTAL(109,Tabela5[$\Cliente]) ->  | I33: =SUBTOTAL(109,Tabela5[Universo PN]) -> 17587884 | J33: =SUBTOTAL(109,Tabela5[Clientes PN]) -> 876587 | K33: =SUBTOTAL(109,Tabela5[% Cobertura]) ->  | L33: =SUBTOTAL(109,Tabela5[População]) -> 210147125 | M33: =SUBTOTAL(109,Tabela5[Clientes PF]) -> 619684 | N33: =SUBTOTAL(109,Tabela5[% População]) -> 
A35: Público Alvo | B35: Atividades Gestão - NA | C35: Atividades Gestão - UF | D35: Iniciativas - NA | E35: Iniciativas - UF | F35: Atendido
A36: Microempreendedor Individual | B36: =IFERROR(GETPIVOTDATA("[Measures].[Nº de Clientes Planejado - Ajustado]",Cubos!$AH$7,"[Público Alvo].[Público Alvo]","[Público Alvo].[Público Alvo].[Segmento de Público Alvo].&[5]"),0) -> 0 | C36: =IFERROR(GETPIVOTDATA("[Measures].[Nº de Clientes Planejado - Ajustado]",Cubos!$AK$7,"[Público Alvo].[Público Alvo]","[Público Alvo].[Público Alvo].[Segmento de Público Alvo].&[5]"),0) -> 479460 | D36: =IFERROR(GETPIVOTDATA("[Measures].[Nº de Clientes Planejado - Ajustado]",Cubos!$AN$7,"[Público Alvo].[Público Alvo]","[Público Alvo].[Público Alvo].[Segmento de Público Alvo].&[5]"),0) -> 0 | E36: =IFERROR(GETPIVOTDATA("[Measures].[Nº de Clientes Planejado - Ajustado]",Cubos!$AQ$7,"[Público Alvo].[Público Alvo]","[Público Alvo].[Público Alvo].[Segmento de Público Alvo].&[5]"),0) -> 36524 | F36: =IFERROR(GETPIVOTDATA("[Measures].[N° de Clientes]",Cubos!$AT$7,"[Público Alvo].[Público Alvo]","[Público Alvo].[Público Alvo].[Segmento de Público Alvo].&[5]"),0) -> 0
A37: Microempresa | B37: =IFERROR(GETPIVOTDATA("[Measures].[Nº de Clientes Planejado - Ajustado]",Cubos!$AH$7,"[Público Alvo].[Público Alvo]","[Público Alvo].[Público Alvo].[Segmento de Público Alvo].&[4]"),0) -> 0 | C37: =IFERROR(GETPIVOTDATA("[Measures].[Nº de Clientes Planejado - Ajustado]",Cubos!$AK$7,"[Público Alvo].[Público Alvo]","[Público Alvo].[Público Alvo].[Segmento de Público Alvo].&[4]"),0) -> 327297 | D37: =IFERROR(GETPIVOTDATA("[Measures].[Nº de Clientes Planejado - Ajustado]",Cubos!$AN$7,"[Público Alvo].[Público Alvo]","[Público Alvo].[Público Alvo].[Segmento de Público Alvo].&[4]"),0) -> 0 | E37: =IFERROR(GETPIVOTDATA("[Measures].[Nº de Clientes Planejado - Ajustado]",Cubos!$AQ$7,"[Público Alvo].[Público Alvo]","[Público Alvo].[Público Alvo].[Segmento de Público Alvo].&[4]"),0) -> 10779 | F37: =IFERROR(GETPIVOTDATA("[Measures].[N° de Clientes]",Cubos!$AT$7,"[Público Alvo].[Público Alvo]","[Público Alvo].[Público Alvo].[Segmento de Público Alvo].&[4]"),0) -> 0
A38: Empresa de Pequeno Porte | B38: =IFERROR(GETPIVOTDATA("[Measures].[Nº de Clientes Planejado - Ajustado]",Cubos!$AH$7,"[Público Alvo].[Público Alvo]","[Público Alvo].[Público Alvo].[Segmento de Público Alvo].&[3]"),0) -> 0 | C38: =IFERROR(GETPIVOTDATA("[Measures].[Nº de Clientes Planejado - Ajustado]",Cubos!$AK$7,"[Público Alvo].[Público Alvo]","[Público Alvo].[Público Alvo].[Segmento de Público Alvo].&[3]"),0) -> 69830 | D38: =IFERROR(GETPIVOTDATA("[Measures].[Nº de Clientes Planejado - Ajustado]",Cubos!$AN$7,"[Público Alvo].[Público Alvo]","[Público Alvo].[Público Alvo].[Segmento de Público Alvo].&[3]"),0) -> 0 | E38: =IFERROR(GETPIVOTDATA("[Measures].[Nº de Clientes Planejado - Ajustado]",Cubos!$AQ$7,"[Público Alvo].[Público Alvo]","[Público Alvo].[Público Alvo].[Segmento de Público Alvo].&[3]"),0) -> 3020 | F38: =IFERROR(GETPIVOTDATA("[Measures].[N° de Clientes]",Cubos!$AT$7,"[Público Alvo].[Público Alvo]","[Público Alvo].[Público Alvo].[Segmento de Público Alvo].&[3]"),0) -> 0
A39: Candidato a empresário | B39: =IFERROR(GETPIVOTDATA("[Measures].[Nº de Clientes Planejado - Ajustado]",Cubos!$AH$7,"[Público Alvo].[Público Alvo]","[Público Alvo].[Público Alvo].[Segmento de Público Alvo].&[7]"),0) -> 0 | C39: =IFERROR(GETPIVOTDATA("[Measures].[Nº de Clientes Planejado - Ajustado]",Cubos!$AK$7,"[Público Alvo].[Público Alvo]","[Público Alvo].[Público Alvo].[Segmento de Público Alvo].&[7]"),0) -> 399189 | D39: =IFERROR(GETPIVOTDATA("[Measures].[Nº de Clientes Planejado - Ajustado]",Cubos!$AN$7,"[Público Alvo].[Público Alvo]","[Público Alvo].[Público Alvo].[Segmento de Público Alvo].&[7]"),0) -> 0 | E39: =IFERROR(GETPIVOTDATA("[Measures].[Nº de Clientes Planejado - Ajustado]",Cubos!$AQ$7,"[Público Alvo].[Público Alvo]","[Público Alvo].[Público Alvo].[Segmento de Público Alvo].&[7]"),0) -> 73232 | F39: =IFERROR(GETPIVOTDATA("[Measures].[N° de Clientes]",Cubos!$AT$7,"[Público Alvo].[Público Alvo]","[Público Alvo].[Público Alvo].[Segmento de Público Alvo].&[7]"),0) -> 0
A40: Potencial Empreendedor | B40: =IFERROR(GETPIVOTDATA("[Measures].[Nº de Clientes Planejado - Ajustado]",Cubos!$AH$7,"[Público Alvo].[Público Alvo]","[Público Alvo].[Público Alvo].[Segmento de Público Alvo].&[8]"),0) -> 0 | C40: =IFERROR(GETPIVOTDATA("[Measures].[Nº de Clientes Planejado - Ajustado]",Cubos!$AK$7,"[Público Alvo].[Público Alvo]","[Público Alvo].[Público Alvo].[Segmento de Público Alvo].&[8]"),0) -> 90495 | D40: =IFERROR(GETPIVOTDATA("[Measures].[Nº de Clientes Planejado - Ajustado]",Cubos!$AN$7,"[Público Alvo].[Público Alvo]","[Público Alvo].[Público Alvo].[Segmento de Público Alvo].&[8]"),0) -> 0 | E40: =IFERROR(GETPIVOTDATA("[Measures].[Nº de Clientes Planejado - Ajustado]",Cubos!$AQ$7,"[Público Alvo].[Público Alvo]","[Público Alvo].[Público Alvo].[Segmento de Público Alvo].&[8]"),0) -> 13737 | F40: =IFERROR(GETPIVOTDATA("[Measures].[N° de Clientes]",Cubos!$AT$7,"[Público Alvo].[Público Alvo]","[Público Alvo].[Público Alvo].[Segmento de Público Alvo].&[8]"),0) -> 0
A41: Pessoa Física | B41: =IFERROR(GETPIVOTDATA("[Measures].[Nº de Clientes Planejado - Ajustado]",Cubos!$AH$7,"[Público Alvo].[Público Alvo]","[Público Alvo].[Público Alvo].[Segmento de Público Alvo].&[10]"),0) -> 0 | C41: =IFERROR(GETPIVOTDATA("[Measures].[Nº de Clientes Planejado - Ajustado]",Cubos!$AK$7,"[Público Alvo].[Público Alvo]","[Público Alvo].[Público Alvo].[Segmento de Público Alvo].&[10]"),0) -> 130000 | D41: =IFERROR(GETPIVOTDATA("[Measures].[Nº de Clientes Planejado - Ajustado]",Cubos!$AN$7,"[Público Alvo].[Público Alvo]","[Público Alvo].[Público Alvo].[Segmento de Público Alvo].&[10]"),0) -> 0 | E41: =IFERROR(GETPIVOTDATA("[Measures].[Nº de Clientes Planejado - Ajustado]",Cubos!$AQ$7,"[Público Alvo].[Público Alvo]","[Público Alvo].[Público Alvo].[Segmento de Público Alvo].&[10]"),0) -> 0 | F41: =IFERROR(GETPIVOTDATA("[Measures].[N° de Clientes]",Cubos!$AT$7,"[Público Alvo].[Público Alvo]","[Público Alvo].[Público Alvo].[Segmento de Público Alvo].&[10]"),0) -> 0
B43: CSN Aprovada | C43: CSN Proposta | D43: Viagens | E43: Convênios | F43: Outras despessas
A44: NA previsão | B44: =IFERROR(GETPIVOTDATA("[Measures].[Valor de Despesa Orçado - Ajustado]",Cubos!$V$5,"[Natureza Orçamentária].[Código Descrição 4 nível]","[Natureza Orçamentária].[Código Descrição 4 nível].&[17]"),0) -> 0 | C44: =IFERROR(GETPIVOTDATA("[Measures].[Valor de Despesa Orçado - Ajustado]",Cubos!$V$5,"[Natureza Orçamentária].[Código Descrição 4 nível]","[Natureza Orçamentária].[Código Descrição 4 nível].&[22]"),0) -> 0 | D44: =IFERROR(GETPIVOTDATA("[Measures].[Valor de Despesa Orçado - Ajustado]",Cubos!$V$5,"[Natureza Orçamentária].[Código Descrição 4 nível]","[Natureza Orçamentária].[Código Descrição 4 nível].&[7]"),0) -> 0 | E44: =IFERROR(GETPIVOTDATA("[Measures].[Valor de Despesa Orçado - Ajustado]",Cubos!$V$5,"[Natureza Orçamentária].[Código Descrição 4 nível]","[Natureza Orçamentária].[Código Descrição 4 nível].&[18]"),0) -> 0 | F44: =IFERROR(GETPIVOTDATA("[Measures].[Valor de Despesa Orçado - Ajustado]",Cubos!$V$5),0) - SUM(B44:E44) -> 0
A45: UF previsão | B45: =IFERROR(GETPIVOTDATA("[Measures].[Valor de Receita Iniciativa Orçado - Ajustado]",Cubos!$Z$6,"[Natureza Orçamentária].[Código Descrição 4 nível]","[Natureza Orçamentária].[Código Descrição 4 nível].&[72]"),0) -> 0 | C45: =IFERROR(GETPIVOTDATA("[Measures].[Valor de Receita Iniciativa Orçado - Ajustado]",Cubos!$Z$6,"[Natureza Orçamentária].[Código Descrição 4 nível]","[Natureza Orçamentária].[Código Descrição 4 nível].&[73]"),0) -> 92679788 | D45: =IFERROR(GETPIVOTDATA("[Measures].[Valor de Despesa Orçado - Ajustado]",Cubos!$Z$6,"[Natureza Orçamentária].[Código Descrição 4 nível]","[Natureza Orçamentária].[Código Descrição 4 nível].&[7]"),0) -> 3553005 | E45: =IFERROR(GETPIVOTDATA("[Measures].[Valor de Despesa Orçado - Ajustado]",Cubos!$Z$6,"[Natureza Orçamentária].[Código Descrição 4 nível]","[Natureza Orçamentária].[Código Descrição 4 nível].&[18]"),0) -> 1091342 | F45: =IFERROR(GETPIVOTDATA("[Measures].[Valor de Despesa Orçado - Ajustado]",Cubos!$Z$6),0)-SUM(D45:E45) -> 171236934

Sheet Geral
B1: Programas Nacionais | C1: Sebrae UF - Gestão | D1: Atividades gestão - NA | E1: Iniciativas Execução - NA | F1: Atividades gestao - UF | G1: Iniciativas Execução - UF
B2: =Somas!A2-1 -> 1 | C2: =Somas!D2-1 -> 12 | D2: =Somas!C2 -> 0 | E2: =Somas!C2 -> 0 | F2: =Somas!E2 -> 12 | G2: =GETPIVOTDATA("Total",Somas!$F$1) -> 13
B19: CSN | C19: CSN Aprovada | D19: CSN Proposta | E19: CSN Total | F19: Orçamento Total | G19: CSO Contrapartida
B20: =Somas!A44 -> NA previsão | C20: =Somas!B44 -> 0 | D20: =Somas!C44 -> 0 | E20: =Tabela6[[#This Row],[CSN Aprovada]]+Tabela6[[#This Row],[CSN Proposta]] -> 0 | F20: 0 | G20: 0
B21: =Somas!A45 -> UF previsão | C21: =Somas!B45 -> 0 | D21: =Somas!C45 -> 92679788 | E21: =Tabela6[[#This Row],[CSN Aprovada]]+Tabela6[[#This Row],[CSN Proposta]] -> 92679788 | F21: =Somas!F33 -> 175881281 | G21: =Tabela6[[#This Row],[Orçamento Total]]-Tabela6[[#This Row],[CSN Aprovada]]-Tabela6[[#This Row],[CSN Proposta]] -> 83201493
B42: Público Alvo | C42: Atividades Gestão - NA | D42: Atividades Gestão - UF | E42: Iniciativas - NA | F42: Iniciativas - UF
B43: =Somas!A36 -> Microempreendedor Individual | C43: =Somas!B36 -> 0 | D43: =Somas!C36 -> 479460 | E43: =Somas!D36 -> 0 | F43: =Somas!E36 -> 36524
B44: =Somas!A37 -> Microempresa | C44: =Somas!B37 -> 0 | D44: =Somas!C37 -> 327297 | E44: =Somas!D37 -> 0 | F44: =Somas!E37 -> 10779
B45: =Somas!A38 -> Empresa de Pequeno Porte | C45: =Somas!B38 -> 0 | D45: =Somas!C38 -> 69830 | E45: =Somas!D38 -> 0 | F45: =Somas!E38 -> 3020
B46: Pessoa Física | C46: =Somas!B39+Somas!B40+Somas!B41 -> 0 | D46: =Somas!C39+Somas!C40+Somas!C41 -> 619684 | E46: =Somas!D39+Somas!D40+Somas!D41 -> 0 | F46: =Somas!E39+Somas!E40+Somas!E41 -> 86969

Sheet Estado
A1: Estado | B1: Iniciativas Gestão | C1: Iniciaitvas Execução | D1: CSN | E1: Orçamento | F1: Contrapartida | G1: % Contrapartida
A2: =Somas!A6 -> AC | B2: =Somas!B6 -> 1 | C2: =IFERROR(Somas!C6,0) -> 1 | D2: =IFERROR(Somas!E6,0) -> 897764 | E2: =IFERROR(Somas!F6,0) -> 10693251 | F2: =Tabela1[[#This Row],[Orçamento]]-Tabela1[[#This Row],[CSN]] -> 9795487 | G2: =IFERROR(Tabela1[[#This Row],[Contrapartida]]/Tabela1[[#This Row],[Orçamento]],0) -> 0.9160438673
A3: =Somas!A7 -> AL | B3: =Somas!B7 -> 0 | C3: =IFERROR(Somas!C7,0) -> 0 | D3: =IFERROR(Somas!E7,0) -> 0 | E3: =IFERROR(Somas!F7,0) -> 0 | F3: =Tabela1[[#This Row],[Orçamento]]-Tabela1[[#This Row],[CSN]] -> 0 | G3: =IFERROR(Tabela1[[#This Row],[Contrapartida]]/Tabela1[[#This Row],[Orçamento]],0) -> 0
A4: =Somas!A8 -> AM | B4: =Somas!B8 -> 1 | C4: =IFERROR(Somas!C8,0) -> 0 | D4: =IFERROR(Somas!E8,0) -> 6962100 | E4: =IFERROR(Somas!F8,0) -> 16097000 | F4: =Tabela1[[#This Row],[Orçamento]]-Tabela1[[#This Row],[CSN]] -> 9134900 | G4: =IFERROR(Tabela1[[#This Row],[Contrapartida]]/Tabela1[[#This Row],[Orçamento]],0) -> 0.5674908368
A5: =Somas!A9 -> AP | B5: =Somas!B9 -> 0 | C5: =IFERROR(Somas!C9,0) -> 0 | D5: =IFERROR(Somas!E9,0) -> 0 | E5: =IFERROR(Somas!F9,0) -> 0 | F5: =Tabela1[[#This Row],[Orçamento]]-Tabela1[[#This Row],[CSN]] -> 0 | G5: =IFERROR(Tabela1[[#This Row],[Contrapartida]]/Tabela1[[#This Row],[Orçamento]],0) -> 0
A6: =Somas!A10 -> BA | B6: =Somas!B10 -> 0 | C6: =IFERROR(Somas!C10,0) -> 0 | D6: =IFERROR(Somas!E10,0) -> 0 | E6: =IFERROR(Somas!F10,0) -> 0 | F6: =Tabela1[[#This Row],[Orçamento]]-Tabela1[[#This Row],[CSN]] -> 0 | G6: =IFERROR(Tabela1[[#This Row],[Contrapartida]]/Tabela1[[#This Row],[Orçamento]],0) -> 0
A7: =Somas!A11 -> CE | B7: =Somas!B11 -> 0 | C7: =IFERROR(Somas!C11,0) -> 0 | D7: =IFERROR(Somas!E11,0) -> 0 | E7: =IFERROR(Somas!F11,0) -> 0 | F7: =Tabela1[[#This Row],[Orçamento]]-Tabela1[[#This Row],[CSN]] -> 0 | G7: =IFERROR(Tabela1[[#This Row],[Contrapartida]]/Tabela1[[#This Row],[Orçamento]],0) -> 0
A8: =Somas!A12 -> DF | B8: =Somas!B12 -> 0 | C8: =IFERROR(Somas!C12,0) -> 0 | D8: =IFERROR(Somas!E12,0) -> 0 | E8: =IFERROR(Somas!F12,0) -> 0 | F8: =Tabela1[[#This Row],[Orçamento]]-Tabela1[[#This Row],[CSN]] -> 0 | G8: =IFERROR(Tabela1[[#This Row],[Contrapartida]]/Tabela1[[#This Row],[Orçamento]],0) -> 0
A9: =Somas!A13 -> ES | B9: =Somas!B13 -> 1 | C9: =IFERROR(Somas!C13,0) -> 0 | D9: =IFERROR(Somas!E13,0) -> 13805561 | E9: =IFERROR(Somas!F13,0) -> 25360461 | F9: =Tabela1[[#This Row],[Orçamento]]-Tabela1[[#This Row],[CSN]] -> 11554900 | G9: =IFERROR(Tabela1[[#This Row],[Contrapartida]]/Tabela1[[#This Row],[Orçamento]],0) -> 0.4556265756
A10: =Somas!A14 -> GO | B10: =Somas!B14 -> 1 | C10: =IFERROR(Somas!C14,0) -> 0 | D10: =IFERROR(Somas!E14,0) -> 12922459 | E10: =IFERROR(Somas!F14,0) -> 20080000 | F10: =Tabela1[[#This Row],[Orçamento]]-Tabela1[[#This Row],[CSN]] -> 7157541 | G10: =IFERROR(Tabela1[[#This Row],[Contrapartida]]/Tabela1[[#This Row],[Orçamento]],0) -> 0.356451245
A11: =Somas!A15 -> MA | B11: =Somas!B15 -> 1 | C11: =IFERROR(Somas!C15,0) -> 0 | D11: =IFERROR(Somas!E15,0) -> 0 | E11: =IFERROR(Somas!F15,0) -> 0 | F11: =Tabela1[[#This Row],[Orçamento]]-Tabela1[[#This Row],[CSN]] -> 0 | G11: =IFERROR(Tabela1[[#This Row],[Contrapartida]]/Tabela1[[#This Row],[Orçamento]],0) -> 0
A12: =Somas!A16 -> MG | B12: =Somas!B16 -> 0 | C12: =IFERROR(Somas!C16,0) -> 0 | D12: =IFERROR(Somas!E16,0) -> 0 | E12: =IFERROR(Somas!F16,0) -> 0 | F12: =Tabela1[[#This Row],[Orçamento]]-Tabela1[[#This Row],[CSN]] -> 0 | G12: =IFERROR(Tabela1[[#This Row],[Contrapartida]]/Tabela1[[#This Row],[Orçamento]],0) -> 0
A13: =Somas!A17 -> MS | B13: =Somas!B17 -> 1 | C13: =IFERROR(Somas!C17,0) -> 0 | D13: =IFERROR(Somas!E17,0) -> 10372997 | E13: =IFERROR(Somas!F17,0) -> 15418567 | F13: =Tabela1[[#This Row],[Orçamento]]-Tabela1[[#This Row],[CSN]] -> 5045570 | G13: =IFERROR(Tabela1[[#This Row],[Contrapartida]]/Tabela1[[#This Row],[Orçamento]],0) -> 0.327239879
A14: =Somas!A18 -> MT | B14: =Somas!B18 -> 0 | C14: =IFERROR(Somas!C18,0) -> 0 | D14: =IFERROR(Somas!E18,0) -> 0 | E14: =IFERROR(Somas!F18,0) -> 0 | F14: =Tabela1[[#This Row],[Orçamento]]-Tabela1[[#This Row],[CSN]] -> 0 | G14: =IFERROR(Tabela1[[#This Row],[Contrapartida]]/Tabela1[[#This Row],[Orçamento]],0) -> 0
A15: =Somas!A19 -> PA | B15: =Somas!B19 -> 0 | C15: =IFERROR(Somas!C19,0) -> 0 | D15: =IFERROR(Somas!E19,0) -> 0 | E15: =IFERROR(Somas!F19,0) -> 0 | F15: =Tabela1[[#This Row],[Orçamento]]-Tabela1[[#This Row],[CSN]] -> 0 | G15: =IFERROR(Tabela1[[#This Row],[Contrapartida]]/Tabela1[[#This Row],[Orçamento]],0) -> 0
A16: =Somas!A20 -> PB | B16: =Somas!B20 -> 1 | C16: =IFERROR(Somas!C20,0) -> 0 | D16: =IFERROR(Somas!E20,0) -> 10889975 | E16: =IFERROR(Somas!F20,0) -> 20992832 | F16: =Tabela1[[#This Row],[Orçamento]]-Tabela1[[#This Row],[CSN]] -> 10102857 | G16: =IFERROR(Tabela1[[#This Row],[Contrapartida]]/Tabela1[[#This Row],[Orçamento]],0) -> 0.4812526962
A17: =Somas!A21 -> PE | B17: =Somas!B21 -> 0 | C17: =IFERROR(Somas!C21,0) -> 0 | D17: =IFERROR(Somas!E21,0) -> 0 | E17: =IFERROR(Somas!F21,0) -> 0 | F17: =Tabela1[[#This Row],[Orçamento]]-Tabela1[[#This Row],[CSN]] -> 0 | G17: =IFERROR(Tabela1[[#This Row],[Contrapartida]]/Tabela1[[#This Row],[Orçamento]],0) -> 0
A18: =Somas!A22 -> PI | B18: =Somas!B22 -> 0 | C18: =IFERROR(Somas!C22,0) -> 0 | D18: =IFERROR(Somas!E22,0) -> 0 | E18: =IFERROR(Somas!F22,0) -> 0 | F18: =Tabela1[[#This Row],[Orçamento]]-Tabela1[[#This Row],[CSN]] -> 0 | G18: =IFERROR(Tabela1[[#This Row],[Contrapartida]]/Tabela1[[#This Row],[Orçamento]],0) -> 0
A19: =Somas!A23 -> PR | B19: =Somas!B23 -> 1 | C19: =IFERROR(Somas!C23,0) -> 0 | D19: =IFERROR(Somas!E23,0) -> 22828932 | E19: =IFERROR(Somas!F23,0) -> 38239170 | F19: =Tabela1[[#This Row],[Orçamento]]-Tabela1[[#This Row],[CSN]] -> 15410238 | G19: =IFERROR(Tabela1[[#This Row],[Contrapartida]]/Tabela1[[#This Row],[Orçamento]],0) -> 0.4029961424
A20: =Somas!A24 -> RJ | B20: =Somas!B24 -> 0 | C20: =IFERROR(Somas!C24,0) -> 0 | D20: =IFERROR(Somas!E24,0) -> 0 | E20: =IFERROR(Somas!F24,0) -> 0 | F20: =Tabela1[[#This Row],[Orçamento]]-Tabela1[[#This Row],[CSN]] -> 0 | G20: =IFERROR(Tabela1[[#This Row],[Contrapartida]]/Tabela1[[#This Row],[Orçamento]],0) -> 0
A21: =Somas!A25 -> RN | B21: =Somas!B25 -> 0 | C21: =IFERROR(Somas!C25,0) -> 0 | D21: =IFERROR(Somas!E25,0) -> 0 | E21: =IFERROR(Somas!F25,0) -> 0 | F21: =Tabela1[[#This Row],[Orçamento]]-Tabela1[[#This Row],[CSN]] -> 0 | G21: =IFERROR(Tabela1[[#This Row],[Contrapartida]]/Tabela1[[#This Row],[Orçamento]],0) -> 0
A22: =Somas!A26 -> RO | B22: =Somas!B26 -> 0 | C22: =IFERROR(Somas!C26,0) -> 0 | D22: =IFERROR(Somas!E26,0) -> 0 | E22: =IFERROR(Somas!F26,0) -> 0 | F22: =Tabela1[[#This Row],[Orçamento]]-Tabela1[[#This Row],[CSN]] -> 0 | G22: =IFERROR(Tabela1[[#This Row],[Contrapartida]]/Tabela1[[#This Row],[Orçamento]],0) -> 0
A23: =Somas!A27 -> RR | B23: =Somas!B27 -> 1 | C23: =IFERROR(Somas!C27,0) -> 0 | D23: =IFERROR(Somas!E27,0) -> 0 | E23: =IFERROR(Somas!F27,0) -> 0 | F23: =Tabela1[[#This Row],[Orçamento]]-Tabela1[[#This Row],[CSN]] -> 0 | G23: =IFERROR(Tabela1[[#This Row],[Contrapartida]]/Tabela1[[#This Row],[Orçamento]],0) -> 0
A24: =Somas!A28 -> RS | B24: =Somas!B28 -> 1 | C24: =IFERROR(Somas!C28,0) -> 0 | D24: =IFERROR(Somas!E28,0) -> 14000000 | E24: =IFERROR(Somas!F28,0) -> 29000000 | F24: =Tabela1[[#This Row],[Orçamento]]-Tabela1[[#This Row],[CSN]] -> 15000000 | G24: =IFERROR(Tabela1[[#This Row],[Contrapartida]]/Tabela1[[#This Row],[Orçamento]],0) -> 0.5172413793
A25: =Somas!A29 -> SC | B25: =Somas!B29 -> 1 | C25: =IFERROR(Somas!C29,0) -> 0 | D25: =IFERROR(Somas!E29,0) -> 0 | E25: =IFERROR(Somas!F29,0) -> 0 | F25: =Tabela1[[#This Row],[Orçamento]]-Tabela1[[#This Row],[CSN]] -> 0 | G25: =IFERROR(Tabela1[[#This Row],[Contrapartida]]/Tabela1[[#This Row],[Orçamento]],0) -> 0
A26: =Somas!A30 -> SE | B26: =Somas!B30 -> 1 | C26: =IFERROR(Somas!C30,0) -> 0 | D26: =IFERROR(Somas!E30,0) -> 0 | E26: =IFERROR(Somas!F30,0) -> 0 | F26: =Tabela1[[#This Row],[Orçamento]]-Tabela1[[#This Row],[CSN]] -> 0 | G26: =IFERROR(Tabela1[[#This Row],[Contrapartida]]/Tabela1[[#This Row],[Orçamento]],0) -> 0
A27: =Somas!A31 -> SP | B27: =Somas!B31 -> 0 | C27: =IFERROR(Somas!C31,0) -> 12 | D27: =IFERROR(Somas!E31,0) -> 0 | E27: =IFERROR(Somas!F31,0) -> 0 | F27: =Tabela1[[#This Row],[Orçamento]]-Tabela1[[#This Row],[CSN]] -> 0 | G27: =IFERROR(Tabela1[[#This Row],[Contrapartida]]/Tabela1[[#This Row],[Orçamento]],0) -> 0
A28: =Somas!A32 -> TO | B28: =Somas!B32 -> 0 | C28: =IFERROR(Somas!C32,0) -> 0 | D28: =IFERROR(Somas!E32,0) -> 0 | E28: =IFERROR(Somas!F32,0) -> 0 | F28: =Tabela1[[#This Row],[Orçamento]]-Tabela1[[#This Row],[CSN]] -> 0 | G28: =IFERROR(Tabela1[[#This Row],[Contrapartida]]/Tabela1[[#This Row],[Orçamento]],0) -> 0
A30: Total | B30: =SUM(B2:B29) -> 12 | C30: 13 | D30: 92679788 | E30: =SUM(E2:E29) -> 175881281 | F30: =SUM(F2:F29) -> 83201493 | G30: =F30/E30 -> 0.47305485

Sheet Resultados
B1: Programa | C1: =C9 -> AC | D1: =D9 -> AL | E1: AM | F1: AP | G1: BA | H1: CE | I1: DF | J1: ES | K1: GO | L1: MA | M1: MG | N1: MS | O1: MT | P1: PA | Q1: PB | R1: PE | S1: PI | T1: PR | U1: RJ | V1: RN | W1: RO | X1: RR | Y1: RS | Z1: SC | AA1: SE | AB1: SP | AC1: TO
A2: Qt. Indicadores | B2: =COUNTA(B10:B201) -> 9 | C2: =COUNTA(C10:C201) -> 6 | D2: 0 | E2: 6 | F2: 0 | G2: 0 | H2: 0 | I2: 0 | J2: 6 | K2: 4 | L2: 5 | M2: 0 | N2: 4 | O2: 0 | P2: 0 | Q2: 6 | R2: 0 | S2: 0 | T2: 5 | U2: 0 | V2: 0 | W2: 0 | X2: 6 | Y2: 8 | Z2: 7 | AA2: 5 | AB2: 0 | AC2: 0
A3: % Adesão aos indicadores | B3: =B2/$B$2 -> 1 | C3: =C2/$B$2 -> 0.6666666667 | D3: 0 | E3: 0.6666666667 | F3: 0 | G3: 0 | H3: 0 | I3: 0 | J3: 0.6666666667 | K3: 0.4444444444 | L3: 0.5555555556 | M3: 0 | N3: 0.4444444444 | O3: 0 | P3: 0 | Q3: 0.6666666667 | R3: 0 | S3: 0 | T3: 0.5555555556 | U3: 0 | V3: 0 | W3: 0 | X3: 0.6666666667 | Y3: 0.8888888889 | Z3: 0.7777777778 | AA3: 0.5555555556 | AB3: 0 | AC3: 0
A5: Iniciativa por Tipo | B5: Desenvolvimento de Produtos e Serviços
A6: Ano | B6: 2021
A8: Valor Meta | C8: Sigla de Sebrae | AE8: Qtd. UFs que aderiram ao Programa | AF8: Qtd. UFs que aderiram ao indicador | AG8: % Adesão de UFs ao indicador | AH8: Análise de Metas
A9: Nome de Programa | B9: Resultado | C9: AC | D9: AL | E9: AM | F9: AP | G9: BA | H9: CE | I9: DF | J9: ES | K9: GO | L9: MA | M9: MG | N9: MS | O9: MT | P9: PA | Q9: PB | R9: PE | S9: PI | T9: PR | U9: RJ | V9: RN | W9: RO | X9: RR | Y9: RS | Z9: SC | AA9: SE | AB9: SP | AC9: TO | AH9: Soma | AI9: Média | AJ9: Mínimo | AK9: Máximo
A10: Cliente em Foco | B10: PG_Atendimento aos MEI Nascentes - % - Obter | C10: 0 | Y10: 9 | Z10: 13 | AE10: =IF(ISBLANK(A10),"", Somas!$D$2) -> 13 | AF10: =IF(ISBLANK(A10),"",COUNTA(C10:AC10)) -> 3 | AG10: =IF(ISBLANK(A10),"",AF10/AE10) -> 0.2307692308 | AH10: =IF(ISBLANK(A10),"", SUM(C10:AC10)) -> 22 | AI10: =IF(ISBLANK(A10),"", AH10/AF10) -> 7.333333333 | AJ10: =IF(ISBLANK(A10),"", MIN(C10:AC10)) -> 0 | AK10: =IF(ISBLANK(A10),"", MAX(C10:AC10)) -> 13
A11: Cliente em Foco | B11: PG_Atendimento por cliente - Número - Obter | C11: 1.7 | E11: 2 | J11: 2.03 | K11: 3 | L11: 70000 | N11: 2 | Q11: 2 | T11: 1.6 | X11: 1.8 | Y11: 2 | Z11: 1.8 | AA11: 1.7 | AE11: =IF(ISBLANK(A11),"", Somas!$D$2) -> 13 | AF11: =IF(ISBLANK(A11),"",COUNTA(C11:AC11)) -> 12 | AG11: =IF(ISBLANK(A11),"",AF11/AE11) -> 0.9230769231 | AH11: =IF(ISBLANK(A11),"", SUM(C11:AC11)) -> 70021.63 | AI11: =IF(ISBLANK(A11),"", AH11/AF11) -> 5835.135833 | AJ11: =IF(ISBLANK(A11),"", MIN(C11:AC11)) -> 1.6 | AK11: =IF(ISBLANK(A11),"", MAX(C11:AC11)) -> 70000
A12: Cliente em Foco | B12: PG_Clientes atendidos por parceiros - Número - Obter | E12: 5000 | J12: 6500 | L12: 3000 | Q12: 3500 | X12: 150 | Y12: 50000 | Z12: 8000 | AE12: =IF(ISBLANK(A12),"", Somas!$D$2) -> 13 | AF12: 7 | AG12: 0.5384615385 | AH12: 76150 | AI12: 10878.57143 | AJ12: 150 | AK12: 50000
A13: Cliente em Foco | B13: PG_Clientes atendidos por serviços digitais - Número - Obter | C13: 10000 | E13: 45200 | J13: 90000 | K13: 92886 | L13: 45000 | N13: 56000 | Q13: 40000 | T13: 320000 | X13: 3500 | Y13: 300000 | Z13: 125000 | AA13: 22000 | AE13: =IF(ISBLANK(A13),"", Somas!$D$2) -> 13 | AF13: 12 | AG13: 0.9230769231 | AH13: 1149586 | AI13: 95798.83333 | AJ13: 3500 | AK13: 320000
A14: Cliente em Foco | B14: PG_Clientes com garantia do FAMPE assistidos na fase pós-crédito - % - Aumentar | Y14: 80 | AE14: =IF(ISBLANK(A14),"", Somas!$D$2) -> 13 | AF14: 1 | AG14: 0.07692307692 | AH14: 80 | AI14: 80 | AJ14: 80 | AK14: 80
A15: Cliente em Foco | B15: PG_Cobertura do Atendimento (ME+EPP) - % - Obter | C15: 20 | E15: 12 | J15: 19.2 | K15: 15 | L15: 14 | N15: 25 | Q15: 17 | T15: 17.86 | X15: 24.3 | Y15: 19 | Z15: 18.8 | AA15: 16 | AE15: =IF(ISBLANK(A15),"", Somas!$D$2) -> 13 | AF15: 12 | AG15: 0.9230769231 | AH15: 218.16 | AI15: 18.18 | AJ15: 12 | AK15: 25
A16: Cliente em Foco | B16: PG_Inovação/Modernização - % - Obter | X16: 4.5 | AE16: =IF(ISBLANK(A16),"", Somas!$D$2) -> 13 | AF16: 1 | AG16: 0.07692307692 | AH16: 4.5 | AI16: 4.5 | AJ16: 4.5 | AK16: 4.5
A17: Cliente em Foco | B17: PG_NPS - Net Promoter Score - pontos - Obter | C17: 70 | E17: 80 | J17: 83 | K17: 77 | L17: 70 | N17: 72 | Q17: 76 | T17: 75.1 | X17: 80.4 | Y17: 75.4 | Z17: 80 | AA17: 72 | AE17: =IF(ISBLANK(A17),"", Somas!$D$2) -> 13 | AF17: 12 | AG17: 0.9230769231 | AH17: 910.9 | AI17: 75.90833333 | AJ17: 70 | AK17: 83
A18: Cliente em Foco | B18: PG_Pequenos Negócios Atendidos - Número - Obter | C18: 10000 | E18: 28430 | J18: 62268 | Q18: 35000 | T18: 270000 | Y18: 200000 | Z18: 84822 | AA18: 19000 | AE18: =IF(ISBLANK(A18),"", Somas!$D$2) -> 13 | AF18: 8 | AG18: 0.6153846154 | AH18: 709520 | AI18: 88690 | AJ18: 10000 | AK18: 270000
AE19: =IF(ISBLANK(A19),"", Somas!$D$2) -> 
AE20: =IF(ISBLANK(A20),"", Somas!$D$2) -> 
AE21: =IF(ISBLANK(A21),"", Somas!$D$2) -> 
AE22: =IF(ISBLANK(A22),"", Somas!$D$2) -> 
AE23: =IF(ISBLANK(A23),"", Somas!$D$2) -> 
AE24: =IF(ISBLANK(A24),"", Somas!$D$2) -> 
AE25: =IF(ISBLANK(A25),"", Somas!$D$2) ->  | AF25: =IF(ISBLANK(A25),"",COUNTA(C25:AC25)) ->  | AG25: =IF(ISBLANK(A25),"",AF25/AE25) ->  | AH25: =IF(ISBLANK(A25),"", SUM(C25:AC25)) ->  | AI25: =IF(ISBLANK(A25),"", AH25/AF25) ->  | AJ25: =IF(ISBLANK(A25),"", MIN(C25:AC25)) ->  | AK25: =IF(ISBLANK(A25),"", MAX(C25:AC25)) -> 
AE26: =IF(ISBLANK(A26),"", Somas!$D$2) -> 
AE27: =IF(ISBLANK(A27),"", Somas!$D$2) -> 
AE28: =IF(ISBLANK(A28),"", Somas!$D$2) -> 
AE29: =IF(ISBLANK(A29),"", Somas!$D$2) -> 
AE30: =IF(ISBLANK(A30),"", Somas!$D$2) -> 
AE31: =IF(ISBLANK(A31),"", Somas!$D$2) -> 
AE32: =IF(ISBLANK(A32),"", Somas!$D$2) -> 
AE33: =IF(ISBLANK(A33),"", Somas!$D$2) -> 
AE34: =IF(ISBLANK(A34),"", Somas!$D$2) -> 
AE35: =IF(ISBLANK(A35),"", Somas!$D$2) -> 
AE36: =IF(ISBLANK(A36),"", Somas!$D$2) -> 
AE37: =IF(ISBLANK(A37),"", Somas!$D$2) -> 
AE38: =IF(ISBLANK(A38),"", Somas!$D$2) -> 
AE39: =IF(ISBLANK(A39),"", Somas!$D$2) -> 
AE40: =IF(ISBLANK(A40),"", Somas!$D$2) -> 
AE41: =IF(ISBLANK(A41),"", Somas!$D$2) -> 
AE42: =IF(ISBLANK(A42),"", Somas!$D$2) -> 
AE43: =IF(ISBLANK(A43),"", Somas!$D$2) -> 
AE44: =IF(ISBLANK(A44),"", Somas!$D$2) -> 
AE45: =IF(ISBLANK(A45),"", Somas!$D$2) -> 
AE46: =IF(ISBLANK(A46),"", Somas!$D$2) -> 
AE47: =IF(ISBLANK(A47),"", Somas!$D$2) -> 
AE48: =IF(ISBLANK(A48),"", Somas!$D$2) -> 
AE49: =IF(ISBLANK(A49),"", Somas!$D$2) -> 
AE50: =IF(ISBLANK(A50),"", Somas!$D$2) -> 
AE51: =IF(ISBLANK(A51),"", Somas!$D$2) -> 
AE52: =IF(ISBLANK(A52),"", Somas!$D$2) -> 
AE53: =IF(ISBLANK(A53),"", Somas!$D$2) -> 
AE54: =IF(ISBLANK(A54),"", Somas!$D$2) -> 
AE55: =IF(ISBLANK(A55),"", Somas!$D$2) -> 
AE56: =IF(ISBLANK(A56),"", Somas!$D$2) -> 
AE57: =IF(ISBLANK(A57),"", Somas!$D$2) -> 
AE58: =IF(ISBLANK(A58),"", Somas!$D$2) -> 
AE59: =IF(ISBLANK(A59),"", Somas!$D$2) -> 
AE60: =IF(ISBLANK(A60),"", Somas!$D$2) -> 
AE61: =IF(ISBLANK(A61),"", Somas!$D$2) -> 
AE62: =IF(ISBLANK(A62),"", Somas!$D$2) -> 
AE63: =IF(ISBLANK(A63),"", Somas!$D$2) -> 
AE64: =IF(ISBLANK(A64),"", Somas!$D$2) -> 
AE65: =IF(ISBLANK(A65),"", Somas!$D$2) -> 
AE66: =IF(ISBLANK(A66),"", Somas!$D$2) -> 
AE67: =IF(ISBLANK(A67),"", Somas!$D$2) -> 
AE68: =IF(ISBLANK(A68),"", Somas!$D$2) -> 
AE69: =IF(ISBLANK(A69),"", Somas!$D$2) -> 
AE70: =IF(ISBLANK(A70),"", Somas!$D$2) -> 
AE71: =IF(ISBLANK(A71),"", Somas!$D$2) -> 
AE72: =IF(ISBLANK(A72),"", Somas!$D$2) -> 
AE73: =IF(ISBLANK(A73),"", Somas!$D$2) -> 
AE74: =IF(ISBLANK(A74),"", Somas!$D$2) -> 
AE75: =IF(ISBLANK(A75),"", Somas!$D$2) -> 
AE76: =IF(ISBLANK(A76),"", Somas!$D$2) -> 
AE77: =IF(ISBLANK(A77),"", Somas!$D$2) -> 
AE78: =IF(ISBLANK(A78),"", Somas!$D$2) -> 
AE79: =IF(ISBLANK(A79),"", Somas!$D$2) -> 
AE80: =IF(ISBLANK(A80),"", Somas!$D$2) -> 
AE81: =IF(ISBLANK(A81),"", Somas!$D$2) -> 
AE82: =IF(ISBLANK(A82),"", Somas!$D$2) -> 
AE83: =IF(ISBLANK(A83),"", Somas!$D$2) -> 
AE84: =IF(ISBLANK(A84),"", Somas!$D$2) -> 
AE85: =IF(ISBLANK(A85),"", Somas!$D$2) -> 
AE86: =IF(ISBLANK(A86),"", Somas!$D$2) -> 
AE87: =IF(ISBLANK(A87),"", Somas!$D$2) -> 
AE88: =IF(ISBLANK(A88),"", Somas!$D$2) -> 
AE89: =IF(ISBLANK(A89),"", Somas!$D$2) ->  | AF89: =IF(ISBLANK(A89),"",COUNTA(C89:AC89)) ->  | AG89: =IF(ISBLANK(A89),"",AF89/AE89) ->  | AH89: =IF(ISBLANK(A89),"", SUM(C89:AC89)) ->  | AI89: =IF(ISBLANK(A89),"", AH89/AF89) ->  | AJ89: =IF(ISBLANK(A89),"", MIN(C89:AC89)) ->  | AK89: =IF(ISBLANK(A89),"", MAX(C89:AC89)) -> 
AE90: =IF(ISBLANK(A90),"", Somas!$D$2) -> 
AE91: =IF(ISBLANK(A91),"", Somas!$D$2) -> 
AE92: =IF(ISBLANK(A92),"", Somas!$D$2) -> 
AE93: =IF(ISBLANK(A93),"", Somas!$D$2) -> 
AE94: =IF(ISBLANK(A94),"", Somas!$D$2) -> 
AE95: =IF(ISBLANK(A95),"", Somas!$D$2) -> 
AE96: =IF(ISBLANK(A96),"", Somas!$D$2) -> 
AE97: =IF(ISBLANK(A97),"", Somas!$D$2) -> 
AE98: =IF(ISBLANK(A98),"", Somas!$D$2) -> 
AE99: =IF(ISBLANK(A99),"", Somas!$D$2) -> 
AE100: =IF(ISBLANK(A100),"", Somas!$D$2) -> 
AE101: =IF(ISBLANK(A101),"", Somas!$D$2) -> 
AE102: =IF(ISBLANK(A102),"", Somas!$D$2) -> 
AE103: =IF(ISBLANK(A103),"", Somas!$D$2) -> 
AE104: =IF(ISBLANK(A104),"", Somas!$D$2) -> 
AE105: =IF(ISBLANK(A105),"", Somas!$D$2) -> 
AE106: =IF(ISBLANK(A106),"", Somas!$D$2) -> 
AE107: =IF(ISBLANK(A107),"", Somas!$D$2) -> 
AE108: =IF(ISBLANK(A108),"", Somas!$D$2) -> 
AE109: =IF(ISBLANK(A109),"", Somas!$D$2) -> 
AE110: =IF(ISBLANK(A110),"", Somas!$D$2) -> 
AE111: =IF(ISBLANK(A111),"", Somas!$D$2) -> 
AE112: =IF(ISBLANK(A112),"", Somas!$D$2) -> 
AE113: =IF(ISBLANK(A113),"", Somas!$D$2) -> 
AE114: =IF(ISBLANK(A114),"", Somas!$D$2) -> 
AE115: =IF(ISBLANK(A115),"", Somas!$D$2) -> 
AE116: =IF(ISBLANK(A116),"", Somas!$D$2) -> 
AE117: =IF(ISBLANK(A117),"", Somas!$D$2) -> 
AE118: =IF(ISBLANK(A118),"", Somas!$D$2) -> 
AE119: =IF(ISBLANK(A119),"", Somas!$D$2) -> 
AE120: =IF(ISBLANK(A120),"", Somas!$D$2) -> 
AE121: =IF(ISBLANK(A121),"", Somas!$D$2) -> 
AE122: =IF(ISBLANK(A122),"", Somas!$D$2) -> 
AE123: =IF(ISBLANK(A123),"", Somas!$D$2) -> 
AE124: =IF(ISBLANK(A124),"", Somas!$D$2) -> 
AE125: =IF(ISBLANK(A125),"", Somas!$D$2) -> 
AE126: =IF(ISBLANK(A126),"", Somas!$D$2) -> 
AE127: =IF(ISBLANK(A127),"", Somas!$D$2) -> 
AE128: =IF(ISBLANK(A128),"", Somas!$D$2) -> 
AE129: =IF(ISBLANK(A129),"", Somas!$D$2) -> 
AE130: =IF(ISBLANK(A130),"", Somas!$D$2) -> 
AE131: =IF(ISBLANK(A131),"", Somas!$D$2) -> 
AE132: =IF(ISBLANK(A132),"", Somas!$D$2) -> 
AE133: =IF(ISBLANK(A133),"", Somas!$D$2) -> 
AE134: =IF(ISBLANK(A134),"", Somas!$D$2) -> 
AE135: =IF(ISBLANK(A135),"", Somas!$D$2) -> 
AE136: =IF(ISBLANK(A136),"", Somas!$D$2) -> 
AE137: =IF(ISBLANK(A137),"", Somas!$D$2) -> 
AE138: =IF(ISBLANK(A138),"", Somas!$D$2) -> 
AE139: =IF(ISBLANK(A139),"", Somas!$D$2) -> 
AE140: =IF(ISBLANK(A140),"", Somas!$D$2) -> 
AE141: =IF(ISBLANK(A141),"", Somas!$D$2) -> 
AE142: =IF(ISBLANK(A142),"", Somas!$D$2) -> 
AE143: =IF(ISBLANK(A143),"", Somas!$D$2) -> 
AE144: =IF(ISBLANK(A144),"", Somas!$D$2) -> 
AE145: =IF(ISBLANK(A145),"", Somas!$D$2) -> 
AE146: =IF(ISBLANK(A146),"", Somas!$D$2) -> 
AE147: =IF(ISBLANK(A147),"", Somas!$D$2) -> 
AE148: =IF(ISBLANK(A148),"", Somas!$D$2) -> 
AE149: =IF(ISBLANK(A149),"", Somas!$D$2) -> 
AE150: =IF(ISBLANK(A150),"", Somas!$D$2) -> 
AE151: =IF(ISBLANK(A151),"", Somas!$D$2) -> 
AE152: =IF(ISBLANK(A152),"", Somas!$D$2) -> 
AE153: =IF(ISBLANK(A153),"", Somas!$D$2) ->  | AF153: =IF(ISBLANK(A153),"",COUNTA(C153:AC153)) ->  | AG153: =IF(ISBLANK(A153),"",AF153/AE153) ->  | AH153: =IF(ISBLANK(A153),"", SUM(C153:AC153)) ->  | AI153: =IF(ISBLANK(A153),"", AH153/AF153) ->  | AJ153: =IF(ISBLANK(A153),"", MIN(C153:AC153)) ->  | AK153: =IF(ISBLANK(A153),"", MAX(C153:AC153)) -> 
AE154: =IF(ISBLANK(A154),"", Somas!$D$2) -> 
AE155: =IF(ISBLANK(A155),"", Somas!$D$2) -> 
AE156: =IF(ISBLANK(A156),"", Somas!$D$2) -> 
AE157: =IF(ISBLANK(A157),"", Somas!$D$2) -> 
AE158: =IF(ISBLANK(A158),"", Somas!$D$2) -> 
AE159: =IF(ISBLANK(A159),"", Somas!$D$2) -> 
AE160: =IF(ISBLANK(A160),"", Somas!$D$2) -> 
AE161: =IF(ISBLANK(A161),"", Somas!$D$2) -> 
AE162: =IF(ISBLANK(A162),"", Somas!$D$2) -> 
AE163: =IF(ISBLANK(A163),"", Somas!$D$2) -> 
AE164: =IF(ISBLANK(A164),"", Somas!$D$2) -> 
AE165: =IF(ISBLANK(A165),"", Somas!$D$2) -> 
AE166: =IF(ISBLANK(A166),"", Somas!$D$2) -> 
AE167: =IF(ISBLANK(A167),"", Somas!$D$2) -> 
AE168: =IF(ISBLANK(A168),"", Somas!$D$2) -> 
AE169: =IF(ISBLANK(A169),"", Somas!$D$2) -> 
AE170: =IF(ISBLANK(A170),"", Somas!$D$2) -> 
AE171: =IF(ISBLANK(A171),"", Somas!$D$2) -> 
AE172: =IF(ISBLANK(A172),"", Somas!$D$2) -> 
AE173: =IF(ISBLANK(A173),"", Somas!$D$2) -> 
AE174: =IF(ISBLANK(A174),"", Somas!$D$2) -> 
AE175: =IF(ISBLANK(A175),"", Somas!$D$2) -> 
AE176: =IF(ISBLANK(A176),"", Somas!$D$2) -> 
AE177: =IF(ISBLANK(A177),"", Somas!$D$2) -> 
AE178: =IF(ISBLANK(A178),"", Somas!$D$2) -> 
AE179: =IF(ISBLANK(A179),"", Somas!$D$2) -> 
AE180: =IF(ISBLANK(A180),"", Somas!$D$2) -> 
AE181: =IF(ISBLANK(A181),"", Somas!$D$2) -> 
AE182: =IF(ISBLANK(A182),"", Somas!$D$2) -> 
AE183: =IF(ISBLANK(A183),"", Somas!$D$2) -> 
AE184: =IF(ISBLANK(A184),"", Somas!$D$2) -> 
AE185: =IF(ISBLANK(A185),"", Somas!$D$2) -> 
AE186: =IF(ISBLANK(A186),"", Somas!$D$2) -> 
AE187: =IF(ISBLANK(A187),"", Somas!$D$2) -> 
AE188: =IF(ISBLANK(A188),"", Somas!$D$2) -> 
AE189: =IF(ISBLANK(A189),"", Somas!$D$2) -> 
AE190: =IF(ISBLANK(A190),"", Somas!$D$2) -> 
AE191: =IF(ISBLANK(A191),"", Somas!$D$2) -> 
AE192: =IF(ISBLANK(A192),"", Somas!$D$2) -> 
AE193: =IF(ISBLANK(A193),"", Somas!$D$2) -> 
AE194: =IF(ISBLANK(A194),"", Somas!$D$2) -> 
AE195: =IF(ISBLANK(A195),"", Somas!$D$2) -> 
AE196: =IF(ISBLANK(A196),"", Somas!$D$2) -> 
AE197: =IF(ISBLANK(A197),"", Somas!$D$2) -> 
AE198: =IF(ISBLANK(A198),"", Somas!$D$2) -> 
AE199: =IF(ISBLANK(A199),"", Somas!$D$2) -> 
AE200: =IF(ISBLANK(A200),"", Somas!$D$2) -> 
AE201: =IF(ISBLANK(A201),"", Somas!$D$2) -> 
AE202: =IF(ISBLANK(A202),"", Somas!$D$2) -> 
... 2 more rows

Sheet Iniciativas
A2: Natureza Orçamentária por Código e Descrição | B2: (Vários itens)
G4: Valores
A5: Nome de Programa | B5: Descrição de Sebrae | C5: Nº da Iniciativa | D5: Descrição de Tipo de Iniciativa | E5: Descrição de Tipologia por Tipo | F5: Iniciativa | G5: Nº de Iniciativas - Ajustado | H5: Valor de Despesa Orçado - Ajustado | I5: Valor de Receita Iniciativa Orçado - Ajustado
A6: Cliente em Foco | B6: SEBRAE/AC | C6: AC000476ATAT | D6: Atividade | E6: Atendimento | F6: Atendimento Remoto - AC | G6: 1 | H6: 222400 | I6: 0
A7: Cliente em Foco | B7: SEBRAE/AC | C7: AC000629ATPS | D7: Atividade | E7: Desenvolvimento de Produtos e Serviços | F7: AC - Clientes em Foco | G7: 1 | H7: 10470851 | I7: 897764
A8: Cliente em Foco | B8: SEBRAE/AM | C8: AM000917ATPS | D8: Atividade | E8: Desenvolvimento de Produtos e Serviços | F8: AM - CLIENTE EM FOCO | G8: 1 | H8: 16097000 | I8: 6962100
A9: Cliente em Foco | B9: SEBRAE/ES | C9: ES001042ATPS | D9: Atividade | E9: Desenvolvimento de Produtos e Serviços | F9: PROGRAMA Cliente em Foco | G9: 1 | H9: 25360461 | I9: 13805561
A10: Cliente em Foco | B10: SEBRAE/GO | C10: GO001004ATPS | D10: Atividade | E10: Desenvolvimento de Produtos e Serviços | F10: Gestão do Programa - Cliente em Foco | G10: 1 | H10: 20080000 | I10: 12922459
A11: Cliente em Foco | B11: SEBRAE/MA | C11: MA001145ATPS | D11: Atividade | E11: Desenvolvimento de Produtos e Serviços | F11: MA - Programa Cliente em Foco | G11: 1
A12: Cliente em Foco | B12: SEBRAE/MS | C12: MS000705ATPS | D12: Atividade | E12: Desenvolvimento de Produtos e Serviços | F12: MS - Gestão do Programa - Cliente em Foco | G12: 1 | H12: 15418567 | I12: 10372997
A13: Cliente em Foco | B13: SEBRAE/PB | C13: PB001022ATPS | D13: Atividade | E13: Desenvolvimento de Produtos e Serviços | F13: Gestão do Programa - PB - Cliente em Foco | G13: 1 | H13: 20992832 | I13: 10889975
A14: Cliente em Foco | B14: SEBRAE/PR | C14: PR002199ATPS | D14: Atividade | E14: Desenvolvimento de Produtos e Serviços | F14: Gestão do Programa Cliente em Foco 2021 | G14: 1 | H14: 38239170 | I14: 22828932
A15: Cliente em Foco | B15: SEBRAE/RR | C15: RR000572ATPS | D15: Atividade | E15: Desenvolvimento de Produtos e Serviços | F15: RR - Gestão do Programa: Cliente em Foco | G15: 1
A16: Cliente em Foco | B16: SEBRAE/RS | C16: RS002742ATPS | D16: Atividade | E16: Desenvolvimento de Produtos e Serviços | F16: Programa Cliente em Foco | G16: 1 | H16: 29000000 | I16: 14000000
A17: Cliente em Foco | B17: SEBRAE/SC | C17: SC001643ATPS | D17: Atividade | E17: Desenvolvimento de Produtos e Serviços | F17: Programa Cliente em Foco | G17: 1
A18: Cliente em Foco | B18: SEBRAE/SE | C18: SE000830ATPS | D18: Atividade | E18: Desenvolvimento de Produtos e Serviços | F18: SE - Gestão do Programa - Cliente em Foco | G18: 1
A19: Cliente em Foco | B19: SEBRAE/SP | C19: SP005290ATAT | D19: Atividade | E19: Atendimento | F19: SP - Atendimento Presencial - ER Araçatuba | G19: 1
A20: Cliente em Foco | B20: SEBRAE/SP | C20: SP005289ATAT | D20: Atividade | E20: Atendimento | F20: SP - Atendimento Presencial - ER Araraquara | G20: 1
A21: Cliente em Foco | B21: SEBRAE/SP | C21: SP005284ATAT | D21: Atividade | E21: Atendimento | F21: SP - Atendimento Presencial - ER Barretos | G21: 1
A22: Cliente em Foco | B22: SEBRAE/SP | C22: SP005255ATAT | D22: Atividade | E22: Atendimento | F22: SP - Atendimento Presencial - ER Alto Tietê | G22: 1
A23: Cliente em Foco | B23: SEBRAE/SP | C23: SP005286ATAT | D23: Atividade | E23: Atendimento | F23: SP - Atendimento Presencial - ER Baixada Santista | G23: 1
A24: Cliente em Foco | B24: SEBRAE/SP | C24: SP005272ATAT | D24: Atividade | E24: Atendimento | F24: SP - Atendimento Presencial - ER Campinas | G24: 1
A25: Cliente em Foco | B25: SEBRAE/SP | C25: SP005281ATAT | D25: Atividade | E25: Atendimento | F25: SP - Atendimento Presencial - ER Bauru | G25: 1
A26: Cliente em Foco | B26: SEBRAE/SP | C26: SP005279ATAT | D26: Atividade | E26: Atendimento | F26: SP - Atendimento Presencial - ER Botucatu | G26: 1
A27: Cliente em Foco | B27: SEBRAE/SP | C27: SP005261ATAT | D27: Atividade | E27: Atendimento | F27: SP - Atendimento Presencial - ER Capital Norte | G27: 1
A28: Cliente em Foco | B28: SEBRAE/SP | C28: SP005264ATAT | D28: Atividade | E28: Atendimento | F28: SP - Atendimento Presencial - ER Capital Leste II | G28: 1
A29: Cliente em Foco | B29: SEBRAE/SP | C29: SP005268ATAT | D29: Atividade | E29: Atendimento | F29: SP - Atendimento Presencial - ER Capital Leste | G29: 1
A30: Cliente em Foco | B30: SEBRAE/SP | C30: SP005360ATAT | D30: Atividade | E30: Atendimento | F30: SP - Atendimento Presencial - ER Cap. Sul | G30: 1
A31: Cliente em Foco Total | G31: 25 | H31: 175881281 | I31: 92679788
